Workbook

Sheet 1. Info and Instructions
AB1: Alectra Utilities Corporation - Enersource Hydro Mississauga Inc.
AB2: Alectra Utilities Corporation - Horizon Utilities Corporation
AB3: Alectra Utilities Corporation - Hydro One Brampton Networks Inc.
AB4: Alectra Utilities Corporation - PowerStream Inc.
AB5: Algoma Power Inc.
AB6: Atikokan Hydro Inc.
AB7: Attawapiskat Power Corp.
AB8: Bluewater Power Distribution Corporation
AB9: Brantford Power Inc.
AB10: Burlington Hydro Inc.
AB11: Canadian Niagara Power Inc. - Eastern Ontario Power
F12: Version | G12: 1.1 | AB12: Canadian Niagara Power Inc. - Fort Erie
AB13: Canadian Niagara Power Inc. - Port Colborne Hydro Inc.
C14: Utility Name | D14: Kitchener-Wilmot Hydro Inc. | AB14: Centre Wellington Hydro Ltd.
AB15: Chapleau Public Utilities Corporation
C16: Assigned EB Number | D16: EB-2020-0049 | AB16: COLLUS Power Corporation
AB17: Cooperative Hydro Embrun Inc.
C18: Name and Title | D18: Margaret Nanninga, VP Finance & CFO | AB18: E.L.K. Energy Inc.
AB19: Energy Plus Inc. - Brant County
C20: Phone Number | D20: 519 749 6177 | AB20: Energy Plus Inc. - Cambridge and North Dumfries
AB21: Entegrus Powerlines Inc.
C22: Email Address | D22: mnanninga@kwhydro.ca | AB22: ENWIN Utilities Ltd.
AB23: Erie Thames Powerlines Corporation
C24: Date | D24: 2019-07-31 | AB24: Espanola Regional Hydro Distribution Corporation
AB25: Essex Powerlines Corporation
C26: Last COS Re-based Year | D26: 2014 | AB26: Festival Hydro Inc.
AB27: Festival Hydro Inc. - Hensall
AB28: Fort Albany Power Corporation
A29: Note: Drop-down lists are shaded blue; Input cells are shaded green. | AB29: Fort Frances Power Corporation
AB30: Greater Sudbury Hydro Inc.
AB31: Grimsby Power Inc.
AB32: Guelph Hydro Electric Systems Inc.
AB33: Halton Hills Hydro Inc.
AB34: Hearst Power Distribution Company Limited
AB35: Hydro 2000 Inc.
AB36: Hydro Hawkesbury Inc.
AB37: Hydro One Networks Inc.
AB38: Hydro One Networks Inc. - Haldimand County Hydro Inc.
AB39: Hydro One Networks Inc. - Norfolk Power Distribution Inc.
AB40: Hydro One Networks Inc. - Woodstock Hydro Services Inc.
AB41: Hydro Ottawa Limited
AB42: Innpower Corporation
AB43: Kashechewan Power Corporation
AB44: Kenora Hydro Electric Corporation Ltd.
AB45: Kingston Hydro Corporation
AB46: Kitchener-Wilmot Hydro Inc.
AB47: Lakefront Utilities Inc.
AB48: Lakeland Power Distribution Ltd.
AB49: Lakeland Power Distribution Ltd. - Parry Sound Service Territory
AB50: London Hydro Inc.
AB51: Midland Power Utility Corporation
AB52: Milton Hydro Distribution inc.
AB53: Newmarket - Tay Power Distribution Ltd. - Newmarket
AB54: Newmarket - Tay Power Distribution Ltd. - Tay
AB55: Niagara Peninsula Energy Inc.
AB56: Niagara-on-the-Lake Hydro Inc.
AB57: North Bay Hydro Distribution Limited
AB58: Northern Ontario Wires Inc.
AB59: Oakville Hydro Electricity Distribution Inc.
AB60: Orangeville Hydro Limited
AB61: Orillia Power Distribution Corporation
AB62: Oshawa PUC Networks Inc.
AB63: Ottawa River Power Corporation
AB64: Peterborough Distribution Incorporated
AB65: PUC Distribution Inc.
AB66: Renfrew Hydro Inc.
AB67: Rideau St. Lawrence Distribution Inc.
AB68: Sioux Lookout Hydro Inc.
AB69: St. Thomas Energy Inc.
AB70: Thunder Bay Hydro Electricity Distribution Inc.
AB71: Tillsonburg Hydro Inc.
AB72: Toronto Hydro-Electric System Limited
AB73: Veridian Connections Inc.
AB74: Wasaga Distribution Inc.
AB75: Waterloo North Hydro Inc.
AB76: Welland Hydro-Electric System Corp.
AB77: Wellington North Power Inc.
AB78: West Coast Huron Energy Inc.
AB79: Westario Power Inc.
AB80: Whitby Hydro Electric Corporation

Sheet Table of Contents
AA1: 1
AA2: 2012
AA3: 2013
AA4: 2014
AA5: 2015
AA6: 2016
D10: 1. Info
D11: S. Summary
D12: A. Data Input Sheet
D13: B. Tax Rates & Exemptions
C16: Historical Year | D16: H0 - PILs, Tax Provision Historical Year
D17: H1 - Adj. Taxable Income Historical Year
D18: H4 - Schedule 4 Loss Carry Forward Historical Year
D19: H8 - Schedule 8 Historical
D20: H13 - Schedule 13 Tax Reserves Historical
C22: Bridge Year | D22: B0 - PILs,Tax Provision Bridge Year
D23: B1 - Adj. Taxable Income Bridge Year
D24: B4 - Schedule 4 Loss Carry Forward Bridge Year
D25: B8 - Schedule 8 CCA Bridge Year
D26: B13 - Schedule 13 Tax Reserves Bridge Year
C28: Test Year | D28: T0 PILs, Tax Provision Test Year
D29: T1 Taxable Income Test Year
D30: T4 Schedule 4 Loss Carry Forward Test Year
D31: T8 Schedule 8 CCA Test Year
D32: T13 Schedule 13 Reserve Test Year

Sheet S. Summary
B7: No inputs required on this worksheet.
D9: Inputs on Service Revenue Requirement Worksheet
D10: The Service Revenue Requirement is in the 'Revenue Requirement Workform' - Tab 3.
D12: Item | G12: Working Paper Reference
D14: Adjustments required to arrive at taxable income | G14: as below | H14: =+H25 -> -8576753.73
D15: Test Year - Payments in Lieu of Taxes (PILs) | G15: T0 | H15: =+'T0 PILs,Tax Provision '!J25 -> 0
D16: Test Year - Grossed-up PILs | G16: T0 | H16: =+'T0 PILs,Tax Provision '!J30 -> 0
D17: Effective Federal Tax Rate | G17: T0 | H17: =+'T0 PILs,Tax Provision '!G14 -> 0.15
D18: Effective Ontario Tax Rate | G18: T0 | H18: =+'T0 PILs,Tax Provision '!G13 -> 0.115
D22: Calculation of Adjustments required to arrive at Taxable Income
D23: Regulatory Income (before income taxes) | G23: T1 | H23: ='T1 Taxable Income Test Year'!F12 -> 8598090.442
D24: Taxable Income | G24: T1 | H24: ='T1 Taxable Income Test Year'!F123 -> 21336.71238
D25: Difference | G25: calculated | H25: =+H24-H23 -> -8576753.73 | I25: as above

Sheet S1. Integrity Checks
A11: Integrity Checks
A13: The applicant must ensure the following integrity checks have been completed and confirm this is the case in the table below, or provide an explanation if this is not the case:
B15: Item | C15: Utility Confirmation (Y/N) | D15: Notes
A16: 1 | B16: The depreciation and amortization added back in the application’s PILs model agree with the numbers disclosed in the rate base section of the application | C16: Y
A17: 2 | B17: The capital additions and deductions in the UCC/ CCA Schedule 8 agree with the rate base section for historical, bridge and test years | C17: Y
A18: 3 | B18: Schedule 8 of the most recent federal T2 tax return filed with the application has a closing December 31 historical year UCC that agrees with the opening (January 1) bridge year UCC. If the amounts do not agree, then the applicant must provide a reconciliation with explanations. Distributors must segregate non- distribution tax amounts on Schedule 8. | C18: Y
A19: 4 | B19: The CCA deductions in the application’s PILs tax model for historical, bridge and test years (as applicable) agree with the numbers in the UCC schedules for the same years filed in the application | C19: Y
A20: 5 | B20: Loss carry-forwards, if any, from the tax returns (Schedule 4) agree with those disclosed in the application | C20: Y
A21: 6 | B21: A discussion is included in the application as to when the loss carry-forwards, if any, will be fully utilized | C21: Y | D21: Not applicable
A22: 7 | B22: CCA is maximized even if there are tax loss carry-forwards | C22: Y
A23: 8 | B23: Accounting OPEB and pension amounts added back on Schedule 1 to reconcile accounting income to net income for tax purposes, must agree with the OM&A analysis for compensation. The amounts deducted must be reasonable when compared with the notes in the audited financial statements, FSCO reports, and the actuarial valuations. | C23: Y
A24: 9 | B24: The income tax rate used to calculate the tax expense must be consistent with the utility’s actual tax facts and evidence filed in the application. | C24: Y

Sheet A. Data Input Sheet
G7: Test Year | H7: Bridge Year
C9: Rate Base | F9: S | G9: 239367774 | H9: 238809665
C11: Return on Ratebase
C12: Deemed ShortTerm Debt % | E12: 0.04 | F12: T | G12: =G9*E12 -> 9574710.96 | H12: W = S * T
C13: Deemed Long Term Debt % | E13: 0.56 | F13: U | G13: =G9*E13 -> 134045953.4 | H13: X = S * U
C14: Deemed Equity % | E14: 0.4 | F14: V | G14: =G9*E14 -> 95747109.6 | H14: Y = S * V
C16: Short Term Interest Rate | E16: 0.0282 | F16: Z | G16: =G12*E16 -> 270006.8491 | H16: AC = W * Z
C17: Long Term Interest | E17: 0.0413 | F17: AA | G17: =G13*E17 -> 5536097.877 | H17: AD = X * AA
C18: Return on Equity (Regulatory Income) | E18: 0.0898 | F18: AB | G18: =G14*E18 -> 8598090.442 | H18: AE = Y * AB | I18: T1
C19: Return on Rate Base | G19: =SUM(G16:G18) -> 14404195.17 | H19: AF = AC + AD + AE
C24: Questions that must be answered | G24: Historical Year | H24: Bridge Year | I24: Test Year
C26: 1. Does the applicant have any Investment Tax Credits (ITC)? | G26: Yes | H26: Yes | I26: Yes
C28: 2. Does the applicant have any SRED Expenditures? | G28: No | H28: No | I28: No
C30: 3. Does the applicant have any Capital Gains or Losses for tax purposes? | G30: No | H30: No | I30: No
C32: 4. Does the applicant have any Capital Leases? | G32: No | H32: No | I32: No
C34: 5. Does the applicant have any Loss Carry-Forwards (non-capital or net capital)? | G34: No | H34: No | I34: No
C36: 6. Since 1999, has the applicant acquired another regulated applicant's assets? | G36: No | H36: No | I36: No
C38: 7. Did the applicant pay dividends? | G38: Yes | H38: Yes | I38: Yes
C39: If Yes, please describe what was the tax treatment in the manager's summary.
C41: 8. Did the applicant elect to capitalize interest incurred on CWIP for tax purposes? | G41: No | H41: No | I41: No

Sheet B. Tax Rates & Exemptions
C9: Tax Rates
C10: Federal & Provincial | E10: Effective | F10: Effective | G10: Effective | H10: Effective | I10: Effective | J10: Effective
C11: As of June 29, 2018 | E11: 2014-01-01 | F11: 2015-01-01 | G11: 2016-01-01 | H11: 2017-01-01 | I11: 2018-01-01 | J11: 2019-01-01
C13: Federal income tax
C14: General corporate rate | E14: 0.38 | F14: 0.38 | G14: 0.38 | H14: 0.38 | I14: 0.38 | J14: 0.38
C15: Federal tax abatement | E15: -0.1 | F15: -0.1 | G15: -0.1 | H15: -0.1 | I15: -0.1 | J15: -0.1
C16: Adjusted federal rate | E16: =SUM(E14:E15) -> 0.28 | F16: 0.28 | G16: 0.28 | H16: 0.28 | I16: 0.28 | J16: 0.28
C18: Rate reduction | E18: -0.13 | F18: -0.13 | G18: -0.13 | H18: -0.13 | I18: -0.13 | J18: -0.13
C19: Federal Income Tax | E19: =E16+E18 -> 0.15 | F19: 0.15 | G19: 0.15 | H19: 0.15 | I19: 0.15 | J19: 0.15
C21: Ontario income tax | E21: 0.115 | F21: 0.115 | G21: 0.115 | H21: 0.115 | I21: 0.115 | J21: 0.115
C23: Combined federal and Ontario | E23: =E19+E21 -> 0.265 | F23: 0.265 | G23: 0.265 | H23: 0.265 | I23: =I19+I21 -> 0.265 | J23: 0.265
C25: Federal & Ontario Small Business
C26: Federal small business threshold | E26: 500000 | F26: 500000 | G26: 500000 | H26: 500000 | I26: 500000 | J26: 500000
C27: Ontario Small Business Threshold | E27: 500000 | F27: 500000 | G27: 500000 | H27: 500000 | I27: 500000 | J27: 500000
C29: Federal small business rate | E29: 0.11 | F29: 0.11 | G29: 0.11 | H29: 0.105 | I29: 0.1 | J29: 0.09
C31: Ontario small business rate | E31: 0.045 | F31: 0.045 | G31: 0.045 | H31: 0.045 | I31: 0.035 | J31: 0.035
C34: Notes
C35: 1. The Ontario Energy Board's proxy for taxable capital is rate base.
C36: 2. Regarding the small business deduction, if applicable,
C37: a. If taxable capital exceeds $15 million, the small business rate will not be applicable.
C38: b. If taxable capital is below $10 million, the small business rate would be applicable.
C39: c. If taxable capital is between $10 million and $15 million, the appropriate small business rate will be calculated.

Sheet H0 PILs,Tax Provision Historic
C6: PILs Tax Provision - Historical Year
C8: Note: Input the actual information from the tax returns for the historical year. | I8: Wires Only
C10: Regulatory Taxable Income | H10: H1 | I10: ='H1 Adj. Taxable Income Historic'!G118 -> 7977662.45 | J10: A
C12: Ontario Income Taxes
C13: Income tax payable | D13: Ontario Income Tax | F13: B | H13: C = A * B
C15: Small business credit | D15: Ontario Small Business Threshold | E15: =IF(I10>'B. Tax Rates & Exemptions'!F27,'B. Tax Rates & Exemptions'!F27,0) -> 500000 | F15: D
D16: Rate reduction (negative) | F16: E | H16: F = D * E
C20: Ontario Income tax | I20: =SUM(G13:G19) -> 0 | J20: J = C + F
C23: Combined Tax Rate and PILs | D23: Ontario Tax Rate (Maximum 11.5%) | G23: 0.115 | H23: B
D24: Federal tax rate (Maximum 15%) | G24: 0.15 | H24: C
D25: Combined tax rate (Maximum 26.5%) | I25: =SUM(G23:G24) -> 0.265 | J25: D = B+C
C28: Total Income Taxes | I28: =I10*I25 -> 2114080.549 | J28: E = A * D
C30: Investment Tax Credits | J30: F
C31: Miscellaneous Tax Credits | I31: -427.45 | J31: G
C32: Total Tax Credits | I32: =SUM(I30:I31) -> -427.45 | J32: H = F + G
C34: Corporate PILs/Income Tax Provision for Historical Year | I34: =IF(I28-I32<0,0,I28-I32) -> 2114507.999 | J34: I = E - H

Sheet H1 Adj. Taxable Income Historic
C8: Adjusted Taxable Income - Historical Year
D11: T2S1 line # | E11: Total for Legal Entity | F11: Non-Distribution Eliminations | G11: Historic Wires Only
C12: Income before PILs/Taxes | D12: (A + 101 + 102) | E12: 13019613.11 | G12: =+E12-F12 -> 13019613.11
C13: Additions:
C14: Interest and penalties on taxes | D14: 103 | E14: 10640.76 | G14: =+E14-F14 -> 10640.76
C15: Amortization of tangible assets | D15: 104 | E15: 9008119.98 | G15: 9008119.98
C16: Amortization of intangible assets | D16: 106 | G16: 0
C17: Recapture of capital cost allowance from Schedule 8 | D17: 107 | G17: 0
C18: Gain on sale of eligible capital property from Schedule 10 | D18: 108 | G18: 0
C19: Income or loss for tax purposes- joint ventures or partnerships | D19: 109 | G19: 0
C20: Loss in equity of subsidiaries and affiliates | D20: 110 | G20: 0
C21: Loss on disposal of assets | D21: 111 | G21: 0
C22: Charitable donations | D22: 112 | E22: 6300 | G22: 6300
C23: Taxable Capital Gains | D23: 113 | G23: 0
C24: Political Donations | D24: 114 | G24: 0
C25: Deferred and prepaid expenses | D25: 116 | G25: 0
C26: Scientific research expenditures deducted on financial statements | D26: 118 | G26: 0
C27: Capitalized interest | D27: 119 | G27: 0
C28: Non-deductible club dues and fees | D28: 120 | G28: 0
C29: Non-deductible meals and entertainment expense | D29: 121 | E29: 27418.53 | G29: 27418.53
C30: Non-deductible automobile expenses | D30: 122 | G30: 0
C31: Non-deductible life insurance premiums | D31: 123 | G31: 0
C32: Non-deductible company pension plans | D32: 124 | G32: 0
C33: Tax reserves deducted in prior year | D33: 125 | G33: 0
C34: Reserves from financial statements- balance at end of year | D34: 126 | G34: 0
C35: Soft costs on construction and renovation of buildings | D35: 127 | G35: 0
C36: Book loss on joint ventures or partnerships | D36: 205 | G36: 0
C37: Capital items expensed | D37: 206 | G37: 0
C38: Debt issue expense | D38: 208 | G38: 0
C39: Development expenses claimed in current year | D39: 212 | G39: 0
C40: Financing fees deducted in books | D40: 216 | G40: 0
C41: Gain on settlement of debt | D41: 220 | G41: 0
C42: Non-deductible advertising | D42: 226 | G42: 0
C43: Non-deductible interest | D43: 227 | G43: 0
C44: Non-deductible legal and accounting fees | D44: 228 | G44: 0
C45: Recapture of SR&ED expenditures | D45: 231 | G45: 0
C46: Share issue expense | D46: 235 | G46: 0
C47: Write down of capital property | D47: 236 | G47: 0
C48: Amounts received in respect of qualifying environment trust per paragraphs 12(1)(z.1) and 12(1)(z.2) | D48: 237 | G48: 0
C49: Other Additions
C50: Interest Expensed on Capital Leases | D50: 290 | G50: 0
C51: Realized Income from Deferred Credit Accounts | D51: 291 | G51: 0
C52: Pensions | D52: 292 | G52: 0
C53: Non-deductible penalties | D53: 293 | G53: 0
D54: 294 | G54: 0
D55: 295 | G55: =+E55-F55 -> 0
C56: ARO Accretion expense | G56: 0
C57: Capital Contributions Received (ITA 12(1)(x)) | G57: 0
C58: Lease Inducements Received (ITA 12(1)(x)) | G58: 0
C59: Deferred Revenue (ITA 12(1)(a)) | G59: 0
C60: Prior Year Investment Tax Credits received | E60: 109826 | G60: 109826
C61: Non deductible PBO and bad debt accruals | E61: 487844.92 | G61: 487844.92
G62: 0
G63: 0
G64: 0
G65: 0
G66: 0
G67: 0
G68: 0
G69: 0
G70: 0
C71: Total Additions | E71: =SUM(E13:E70) -> 9650150.19 | F71: =SUM(F13:F70) -> 0 | G71: =SUM(G13:G70) -> 9650150.19
C73: Deductions:
C74: Gain on disposal of assets per financial statements | D74: 401 | E74: 128387.15 | G74: =+E74-F74 -> 128387.15
C75: Dividends not taxable under section 83 | D75: 402 | G75: 0
C76: Capital cost allowance from Schedule 8 | D76: 403 | E76: 13652773 | G76: 13652773
C77: Terminal loss from Schedule 8 | D77: 404 | G77: 0
C78: Allowable business investment loss | D78: 406 | G78: 0
C79: Deferred and prepaid expenses | D79: 409 | G79: 0
C80: Scientific research expenses claimed in year | D80: 411 | G80: 0
C81: Tax reserves claimed in current year | D81: 413 | G81: 0
C82: Reserves from financial statements - balance at beginning of year | D82: 414 | G82: 0
C83: Contributions to deferred income plans | D83: 416 | G83: 0
C84: Book income of joint venture or partnership | D84: 305 | G84: 0
C85: Equity in income from subsidiary or affiliates | D85: 306 | G85: 0
C86: Other deductions: (Please explain in detail the nature of the item)
C88: Interest capitalized for accounting deducted for tax | D88: 390 | G88: 0
C89: Capital Lease Payments | D89: 391 | G89: 0
C90: Non-taxable imputed interest income on deferral and variance accounts | D90: 392 | G90: 0
D91: 393 | G91: 0
D92: 394 | G92: 0
C93: ARO Payments - Deductible for Tax when Paid | G93: 0
C94: ITA 13(7.4) Election - Capital Contributions Received | G94: 0
C95: ITA 13(7.4) Election - Apply Lease Inducement to cost of Leaseholds | G95: 0
C96: Deferred Revenue - ITA 20(1)(m) reserve | G96: 0
C97: Principal portion of lease payments | G97: 0
C98: Lease Inducement Book Amortization credit to income | G98: 0
C99: Financing fees for tax ITA 20(1)(e) and (e.1) | G99: 0
C100: OMERS capitalized | E100: 364243.45 | G100: 364243.45
C101: Actual PBO and bad debt expense | E101: 546697.25 | G101: 546697.25
G102: 0
G103: 0
G104: 0
G105: 0
G106: 0
G107: 0
C108: Total Deductions | E108: =SUM(E74:E107) -> 14692100.85 | F108: =SUM(F74:F107) -> 0 | G108: =SUM(G74:G107) -> 14692100.85
C110: Net Income for Tax Purposes | E110: =+E12+E71-E108 -> 7977662.45 | F110: =+F12+F71-F108 -> 0 | G110: =+G12+G71-G108 -> 7977662.45
C112: Charitable donations from Schedule 2 | D112: 311 | G112: =+E112-F112 -> 0
C113: Taxable dividends deductible under section 112 or 113, from Schedule 3 (item 82) | D113: 320 | G113: =+E113-F113 -> 0
C114: Non-capital losses of preceding taxation years from Schedule 4 | D114: 331 | G114: =+E114-F114 -> 0
C115: Net-capital losses of preceding taxation years from Schedule 4 (Please include explanation and calculation in Manager's summary) | D115: 332 | G115: =+E115-F115 -> 0
C116: Limited partnership losses of preceding taxation years from Schedule 4 | D116: 335 | G116: =+E116-F116 -> 0
C118: TAXABLE INCOME | E118: =+E110-SUM(E112:E116) -> 7977662.45 | F118: =+F110-SUM(F112:F116) -> 0 | G118: =+G110-SUM(G112:G116) -> 7977662.45 | H118: H0

Sheet H4 Sch 4 Loss Cfwd Hist
C9: Schedule 7-1 Loss Carry Forward - Historical
C11: Corporation Loss Continuity and Application
C13: Non-Capital Loss Carry Forward Deduction | F13: Total | G13: Non-Distribution Portion | H13: Utility Balance
C14: Actual Historical | H14: =F14-G14 -> 0 | I14: B4
C16: Net Capital Loss Carry Forward Deduction | F16: Total | G16: Non-Distribution Portion | H16: Utility Balance
C17: Actual Historical | H17: =F17-G17 -> 0 | I17: B4

Sheet H8 Sch 8 Historical
C6: Schedule 8 - Historical Year
C11: Class | D11: Class Description | E11: UCC End of Year Historical per tax returns | F11: Less: Non-Distribution Portion | G11: UCC Regulated Historical Year | H11: Working Paper Reference
C12: 1 | D12: Distribution System - post 1987 | E12: 77691080.92 | G12: =+E12-F12 -> 77691080.92 | H12: B8
C13: 1 Enhanced | D13: Non-residential Buildings Reg. 1100(1)(a.1) election | E13: 10249482.37 | G13: =+E13-F13 -> 10249482.37 | H13: B8
C14: 2 | D14: Distribution System - pre 1988 | E14: 5845362.796 | G14: =+E14-F14 -> 5845362.796 | H14: B8
C15: 8 | D15: General Office/Stores Equip | E15: 4429027.076 | G15: 4429027.076 | H15: B8
C16: 10 | D16: Computer Hardware/ Vehicles | E16: 1639748.936 | G16: 1639748.936 | H16: B8
C17: 10.1 | D17: Certain Automobiles | G17: 0 | H17: B8
C18: 12 | D18: Computer Software | G18: 0 | H18: B8
C19: 13 1 | D19: Lease # 1 | G19: 0 | H19: B8
C20: 13 2 | D20: Lease #2 | G20: 0 | H20: B8
C21: 13 3 | D21: Lease # 3 | G21: 0 | H21: B8
C22: 13 4 | D22: Lease # 4 | G22: 0 | H22: B8
C23: 14 | D23: Franchise | G23: 0 | H23: B8
C24: 17 | D24: New Electrical Generating Equipment Acq'd after Feb 27/00 Other Than Bldgs | E24: 237206.7356 | G24: 237206.7356 | H24: B8
C25: 42 | D25: Fibre Optic Cable | G25: =+E25-F25 -> 0 | H25: B8
C26: 43.1 | D26: Certain Energy-Efficient Electrical Generating Equipment | G26: 0 | H26: B8
C27: 43.2 | D27: Certain Clean Energy Generation Equipment | G27: 0 | H27: B8
C28: 45 | D28: Computers & Systems Software acq'd post Mar 22/04 | E28: 591.9630819 | G28: 591.9630819 | H28: B8
C29: 46 | D29: Data Network Infrastructure Equipment (acq'd post Mar 22/04) | E29: 6994.40112 | G29: 6994.40112 | H29: B8
C30: 47 | D30: Distribution System - post February 2005 | E30: 91980713.07 | G30: 91980713.07 | H30: B8
C31: 50 | D31: Data Network Infrastructure Equipment - post Mar 2007 | E31: 749279.49 | G31: 749279.49 | H31: B8
C32: 52 | D32: Computer Hardware and system software | G32: 0 | H32: B8
C33: 95 | D33: CWIP | G33: 0 | H33: B8
C34: 14.1 | D34: Eligible Capital Property (acq'd pre Jan 1, 2017)1 | G34: 0 | H34: B8
C35: 14.1 | D35: Eligible Capital Property (acq'd post Jan 1, 2017)1 | G35: 0 | H35: B8
C36: 3 | D36: Most buildings acquired before 1988 or 1990 | E36: 2009117.562 | G36: 2009117.562
E37: 0 | G37: 0
C38: AIIP | D38: Smoothing Technique | G38: 0
G39: 0
G40: 0
G41: 0
G42: 0
G43: 0
D44: SUB-TOTAL - UCC | E44: =SUM(E12:E43) -> 194838605.3 | F44: =SUM(F12:F43) -> 0 | G44: =SUM(G12:G43) -> 194838605.3
C46: 1 New CCA class 14.1 effective January 1, 2017. The class includes property that was eligible capital property immediately before January 1, 2017. For tax years that end prior to 2027, transitional rules apply to class 14.1 that were acquired before January 1, 2017.

Sheet H13 Sch 13 Tax Reserves Histori
C8: Schedule 13 Tax Reserves - Historical
C10: Continuity of Reserves
C13: Description | D13: Historical Balance as per tax returns | E13: Non-Distribution Eliminations | F13: Utility Only
C15: Capital Gains Reserves ss.40(1) | F15: =D15-E15 -> 0 | G15: B13
C16: Tax Reserves Not Deducted for accounting purposes
C17: Reserve for doubtful accounts ss. 20(1)(l) | F17: =D17-E17 -> 0 | G17: B13
C18: Reserve for goods and services not delivered ss. 20(1)(m) | F18: 0 | G18: B13
C19: Reserve for unpaid amounts ss. 20(1)(n) | F19: 0 | G19: B13
C20: Debt & Share Issue Expenses ss. 20(1)(e) | F20: 0 | G20: B13
C21: Other tax reserves | F21: 0 | G21: B13
F22: 0
F23: 0
F24: 0
F25: 0
F26: 0
C27: Total | D27: =SUM(D17:D26) -> 0 | E27: =SUM(E17:E26) -> 0 | F27: =SUM(F17:F26) -> 0
C29: Financial Statement Reserves (not deductible for Tax Purposes)
C30: General Reserve for Inventory Obsolescence (non-specific) | F30: =D30-E30 -> 0 | G30: B13
C31: General reserve for bad debts | F31: 0 | G31: B13
C32: Accrued Employee Future Benefits: | F32: 0 | G32: B13
C33: - Medical and Life Insurance | F33: 0 | G33: B13
C34: -Short & Long-term Disability | F34: 0 | G34: B13
C35: -Accmulated Sick Leave | F35: 0 | G35: B13
C36: - Termination Cost | F36: 0 | G36: B13
C37: - Other Post-Employment Benefits | F37: 0 | G37: B13
C38: Provision for Environmental Costs | F38: 0 | G38: B13
C39: Restructuring Costs | F39: 0 | G39: B13
C40: Accrued Contingent Litigation Costs | F40: 0 | G40: B13
C41: Accrued Self-Insurance Costs | F41: 0 | G41: B13
C42: Other Contingent Liabilities | F42: 0 | G42: B13
C43: Bonuses Accrued and Not Paid Within 180 Days of Year-End ss. 78(4) | F43: 0 | G43: B13
C44: Unpaid Amounts to Related Person and Not Paid Within 3 Taxation Years ss. 78(1) | F44: 0 | G44: B13
C45: Other | F45: 0 | G45: B13
F49: 0
F50: 0
C51: Total | D51: =SUM(D30:D50) -> 0 | E51: =SUM(E30:E50) -> 0 | F51: =SUM(F30:F50) -> 0

Sheet B0 PILs,Tax Provision Bridge
B6: PILS Tax Provision - Bridge Year
J8: Wires Only
I9: Reference
C10: Regulatory Taxable Income | I10: B1 | J10: ='B1 Adj. Taxable Income Bridge'!F113 -> 6079211.177 | K10: A
D12: Tax Rate | E12: Small Business Rate (If Applicable) | F12: Taxes Payable | G12: Effective Tax Rate
C13: Ontario (Max 11.5%) | D13: 0.115 | E13: =IF('A. Data Input Sheet'!H9<=10000000, ontario_SB, IF('A. Data Input Sheet'!H9>=15000000, ontariotax, IF(AND('A. Data Input Sheet'!H9>10000000, 'A. Data Input Sheet'!H9<15000000), ontario_SB+ ('A. Data Input Sheet'!H9 - 10000000)*(ontariotax - ontario_SB)/(15000000-10000000)))) -> 0.115 | F13: =IF(J10<500000,J10,500000)*E13+IF(J10>500000,J10-500000,0)*D13 -> 699109.2854 | G13: =IF(F13=0,0,+F13/J10) -> 0.115 | H13: B
C14: Federal (Max 15%) | D14: 0.15 | E14: =IF('A. Data Input Sheet'!H9<=10000000, Fed_SB_Bridge, IF('A. Data Input Sheet'!H9>=15000000, FedTax, IF(AND('A. Data Input Sheet'!H9>10000000, 'A. Data Input Sheet'!H9<15000000), Fed_SB_Bridge+ ('A. Data Input Sheet'!H9 - 10000000)*(FedTax -Fed_SB_Bridge)/(15000000-10000000)))) -> 0.15 | F14: =E14*IF(J10<500000,J10,500000)+IF(J10>500000,J10-500000,0)*D14 -> 911881.6766 | G14: =IF(F14=0,0,+F14/J10) -> 0.15 | H14: C
C16: Combined effective tax rate (Max 26.5%) | J16: =SUM(G13:G14) -> 0.265 | K16: D = B + C
C19: Total Income Taxes | J19: =IF(J10*J16<0,0,J10*J16) -> 1610990.962 | K19: E = A * D
C21: Investment Tax Credits | K21: F
C22: Miscellaneous Tax Credits | J22: 85000 | K22: G
C23: Total Tax Credits | J23: =SUM(J21:J22) -> 85000 | K23: H = F + G
C25: Corporate PILs/Income Tax Provision for Bridge Year | J25: =IF(J19-J23<0,0,J19-J23) -> 1525990.962 | K25: I = E - H
C29: Note:
C30: 1. This is for the derivation of Bridge year PILs income tax expense and should not be used for Test year revenue requirement calculations.

Sheet B1 Adj. Taxable Income Bridge
B5: Adjusted Taxable Income - Bridge Year
D7: T2S1 line # | E7: Working Paper Reference | F7: Total for Regulated Utility
C8: Income before PILs/Taxes | D8: (A + 101 + 102) | F8: 11178081
C10: Additions:
C11: Interest and penalties on taxes | D11: 103
C12: Amortization of tangible assets | D12: 104 | F12: 9350500
C13: Amortization of intangible assets | D13: 106
C14: Recapture of capital cost allowance from Schedule 8 | D14: 107
C15: Gain on sale of eligible capital property from Schedule 10 | D15: 108
C16: Income or loss for tax purposes- joint ventures or partnerships | D16: 109
C17: Loss in equity of subsidiaries and affiliates | D17: 110
C18: Loss on disposal of assets | D18: 111
C19: Charitable donations | D19: 112
C20: Taxable Capital Gains | D20: 113
C21: Political Donations | D21: 114
C22: Deferred and prepaid expenses | D22: 116
C23: Scientific research expenditures deducted on financial statements | D23: 118
C24: Capitalized interest | D24: 119
C25: Non-deductible club dues and fees | D25: 120
C26: Non-deductible meals and entertainment expense | D26: 121 | F26: 33000
C27: Non-deductible automobile expenses | D27: 122
C28: Non-deductible life insurance premiums | D28: 123
C29: Non-deductible company pension plans | D29: 124
C30: Tax reserves deducted in prior year | D30: 125 | E30: B13 | F30: ='B13 Sch 13 Tax Reserves Bridge'!G22 -> 0
C31: Reserves from financial statements- balance at end of year | D31: 126 | E31: B13 | F31: ='B13 Sch 13 Tax Reserves Bridge'!K43 -> 0
C32: Soft costs on construction and renovation of buildings | D32: 127
C33: Book loss on joint ventures or partnerships | D33: 205
C34: Capital items expensed | D34: 206
C35: Debt issue expense | D35: 208
C36: Development expenses claimed in current year | D36: 212
C37: Financing fees deducted in books | D37: 216
C38: Gain on settlement of debt | D38: 220
C39: Non-deductible advertising | D39: 226
C40: Non-deductible interest | D40: 227
C41: Non-deductible legal and accounting fees | D41: 228
C42: Recapture of SR&ED expenditures | D42: 231
C43: Share issue expense | D43: 235
C44: Write down of capital property | D44: 236
C45: Amounts received in respect of qualifying environment trust per paragraphs 12(1)(z.1) and 12(1)(z.2) | D45: 237
C46: Other Additions
C47: Interest Expensed on Capital Leases | D47: 290
C48: Realized Income from Deferred Credit Accounts | D48: 291
C49: Pensions | D49: 292
C50: Non-deductible penalties | D50: 293
D51: 294
D52: 295
C53: ARO Accretion expense
C54: Capital Contributions Received (ITA 12(1)(x))
C55: Lease Inducements Received (ITA 12(1)(x))
C56: Deferred Revenue (ITA 12(1)(a))
C57: Prior Year Investment Tax Credits received | F57: 54000
C58: Non deductible PBO and bad debt accruals | F58: 550500
C68: Total Additions | F68: =SUM(F10:F67) -> 9988000
C69: Deductions:
C70: Gain on disposal of assets per financial statements | D70: 401 | F70: 15000
C71: Dividends not taxable under section 83 | D71: 402
C72: Capital cost allowance from Schedule 8 | D72: 403 | E72: B8 | F72: ='B8 Schedule 8 CCA Bridge Year'!M42 -> 14592069.82
C73: Terminal loss from Schedule 8 | D73: 404
C74: Allowable business investment loss | D74: 406
C75: Deferred and prepaid expenses | D75: 409
C76: Scientific research expenses claimed in year | D76: 411
C77: Tax reserves claimed in current year | D77: 413 | E77: B13 | F77: ='B13 Sch 13 Tax Reserves Bridge'!K22 -> 0
C78: Reserves from financial statements - balance at beginning of year | D78: 414 | E78: B13 | F78: ='B13 Sch 13 Tax Reserves Bridge'!G43 -> 0
C79: Contributions to deferred income plans | D79: 416
C80: Book income of joint venture or partnership | D80: 305
C81: Equity in income from subsidiary or affiliates | D81: 306
C82: Other deductions: (Please explain in detail the nature of the item)
C84: Interest capitalized for accounting deducted for tax | D84: 390
C85: Capital Lease Payments | D85: 391
C86: Non-taxable imputed interest income on deferral and variance accounts | D86: 392
D87: 393
D88: 394
C89: ARO Payments - Deductible for Tax when Paid
C90: ITA 13(7.4) Election - Capital Contributions Received
C91: ITA 13(7.4) Election - Apply Lease Inducement to cost of Leaseholds
C92: Deferred Revenue - ITA 20(1)(m) reserve
C93: Principal portion of lease payments
C94: Lease Inducement Book Amortization credit to income
C95: Financing fees for tax ITA 20(1)(e) and (e.1)
C96: Actual PBO and bad debts expense | F96: 479800
C104: Total Deductions | E104: calculated | F104: =SUM(F70:F103) -> 15086869.82
C106: Net Income for Tax Purposes | E106: calculated | F106: =+F8+F68-F104 -> 6079211.177
C107: Charitable donations from Schedule 2 | D107: 311
C108: Taxable dividends deductible under section 112 or 113, from Schedule 3 (item 82) | D108: 320
C109: Non-capital losses of preceding taxation years from Schedule 4 | D109: 331 | E109: B4 | F109: ='B4 Sch 4 Loss Cfwd Bridge'!G13*-1 -> 0
C110: Net-capital losses of preceding taxation years from Schedule 4 (Please include explanation and calculation in Manager's summary) | D110: 332 | E110: B4 | F110: ='B4 Sch 4 Loss Cfwd Bridge'!G20*-1 -> 0
C111: Limited partnership losses of preceding taxation years from Schedule 4 | D111: 335
C113: TAXABLE INCOME | E113: calculated | F113: =SUM(F106:F111) -> 6079211.177

Sheet B4 Sch 4 Loss Cfwd Bridge
C7: Corporation Loss Continuity and Application
C9: Schedule 4 Loss Carry Forward - Bridge Year
C11: Non-Capital Loss Carry Forward Deduction | G11: Total
C12: Actual Historical | F12: H4 | G12: ='H4 Sch 4 Loss Cfwd Hist'!H14 -> 0
C13: Amount to be used in Bridge Year | F13: B1 | G13: =IF('B1 Adj. Taxable Income Bridge'!F106<0,0,IF('B1 Adj. Taxable Income Bridge'!F106>G12,G12,'B1 Adj. Taxable Income Bridge'!F106)) -> 0
C14: Loss Carry Forward Generated in Bridge Year (if any) | F14: B1 | G14: =IF('B1 Adj. Taxable Income Bridge'!F106<0, 'B1 Adj. Taxable Income Bridge'!F106*-1, 0) -> 0
C15: Other Adjustments
C16: Balance available for use post Bridge Year | F16: calculated | G16: =G12-G13+G14+G15 -> 0 | H16: T4
C18: Net Capital Loss Carry Forward Deduction | G18: Total
C19: Actual Historical | F19: H4 | G19: ='H4 Sch 4 Loss Cfwd Hist'!H17 -> 0
C20: Amount to be used in Bridge Year
C21: Loss Carry Forward Generated in Bridge Year (if any) | F21: B1
C22: Other Adjustments
C23: Balance available for use post Bridge Year | F23: calculated | G23: =G19-G20+G21+G22 -> 0 | H23: T4
H33: uu

Sheet B8 Schedule 8 CCA Bridge Year
C7: Schedule 8 CCA - Bridge Year
C9: Class | D9: Class Description | E9: Working Paper Reference | F9: UCC Regulated Historical Year | G9: Additions | H9: Disposals (Negative) | I9: UCC Before 1/2 Yr Adjustment | J9: 1/2 Year Rule {1/2 Additions Less Disposals} | K9: Reduced UCC | L9: Rate % | M9: Bridge Year CCA | O9: UCC End of Bridge Year | P9: Working Paper Reference
C10: =IF(ISBLANK('H8 Sch 8 Historical'!C12), "", 'H8 Sch 8 Historical'!C12) -> 1 | D10: =IF(ISBLANK('H8 Sch 8 Historical'!D12), "", 'H8 Sch 8 Historical'!D12) -> Distribution System - post 1987 | E10: H8 | F10: =IF(ISBLANK('H8 Sch 8 Historical'!E12), "", 'H8 Sch 8 Historical'!G12) -> 77691080.92 | I10: =MAX((SUM(F10:H10)),0) -> 77691080.92 | J10: =IF((G10+H10)<=0, 0,(G10+H10)*0.5) -> 0 | K10: =+I10-J10 -> 77691080.92 | L10: 0.04 | M10: =IF(+K10<0,+K10,+K10*L10) -> 3107643.237 | O10: =MAX(0,+I10-M10) -> 74583437.68 | P10: T8
C11: =IF(ISBLANK('H8 Sch 8 Historical'!C13), "", 'H8 Sch 8 Historical'!C13) -> 1 Enhanced | D11: =IF(ISBLANK('H8 Sch 8 Historical'!D13), "", 'H8 Sch 8 Historical'!D13) -> Non-residential Buildings Reg. 1100(1)(a.1) election | E11: H8 | F11: =IF(ISBLANK('H8 Sch 8 Historical'!E13), "", 'H8 Sch 8 Historical'!G13) -> 10249482.37 | G11: 750000 | I11: =MAX((SUM(F11:H11)),0) -> 10999482.37 | J11: =IF((G11+H11)<=0, 0,(G11+H11)*0.5) -> 375000 | K11: =+I11-J11 -> 10624482.37 | L11: 0.06 | M11: 637468.942 | O11: 10362013.42 | P11: T8
C12: =IF(ISBLANK('H8 Sch 8 Historical'!C14), "", 'H8 Sch 8 Historical'!C14) -> 2 | D12: =IF(ISBLANK('H8 Sch 8 Historical'!D14), "", 'H8 Sch 8 Historical'!D14) -> Distribution System - pre 1988 | E12: H8 | F12: =IF(ISBLANK('H8 Sch 8 Historical'!E14), "", 'H8 Sch 8 Historical'!G14) -> 5845362.796 | I12: 5845362.796 | J12: 0 | K12: 5845362.796 | L12: 0.06 | M12: 350721.7678 | O12: 5494641.029 | P12: T8
C13: =IF(ISBLANK('H8 Sch 8 Historical'!C15), "", 'H8 Sch 8 Historical'!C15) -> 8 | D13: =IF(ISBLANK('H8 Sch 8 Historical'!D15), "", 'H8 Sch 8 Historical'!D15) -> General Office/Stores Equip | E13: H8 | F13: =IF(ISBLANK('H8 Sch 8 Historical'!E15), "", 'H8 Sch 8 Historical'!G15) -> 4429027.076 | G13: 850000 | I13: 5279027.076 | J13: 425000 | K13: 4854027.076 | L13: 0.2 | M13: 970805.4152 | O13: 4308221.661 | P13: T8
C14: =IF(ISBLANK('H8 Sch 8 Historical'!C16), "", 'H8 Sch 8 Historical'!C16) -> 10 | D14: =IF(ISBLANK('H8 Sch 8 Historical'!D16), "", 'H8 Sch 8 Historical'!D16) -> Computer Hardware/ Vehicles | E14: H8 | F14: =IF(ISBLANK('H8 Sch 8 Historical'!E16), "", 'H8 Sch 8 Historical'!G16) -> 1639748.936 | G14: 1549200 | H14: -15000 | I14: 3173948.936 | J14: 767100 | K14: 2406848.936 | L14: 0.3 | M14: 722054.6808 | O14: 2451894.255 | P14: T8
C15: =IF(ISBLANK('H8 Sch 8 Historical'!C17), "", 'H8 Sch 8 Historical'!C17) -> 10.1 | D15: =IF(ISBLANK('H8 Sch 8 Historical'!D17), "", 'H8 Sch 8 Historical'!D17) -> Certain Automobiles | E15: H8 | F15: =IF(ISBLANK('H8 Sch 8 Historical'!E17), "", 'H8 Sch 8 Historical'!G17) ->  | I15: 0 | J15: 0 | K15: 0 | L15: 0.3 | M15: 0 | O15: 0 | P15: T8
C16: =IF(ISBLANK('H8 Sch 8 Historical'!C18), "", 'H8 Sch 8 Historical'!C18) -> 12 | D16: =IF(ISBLANK('H8 Sch 8 Historical'!D18), "", 'H8 Sch 8 Historical'!D18) -> Computer Software | E16: H8 | F16: =IF(ISBLANK('H8 Sch 8 Historical'!E18), "", 'H8 Sch 8 Historical'!G18) ->  | I16: 0 | J16: 0 | K16: 0 | L16: 1 | M16: =IF(+K16<0,+K16,+K16*L16) -> 0 | O16: =MAX(0,+I16-M16) -> 0 | P16: T8
C17: =IF(ISBLANK('H8 Sch 8 Historical'!C19), "", 'H8 Sch 8 Historical'!C19) -> 13 1 | D17: =IF(ISBLANK('H8 Sch 8 Historical'!D19), "", 'H8 Sch 8 Historical'!D19) -> Lease # 1 | E17: H8 | F17: =IF(ISBLANK('H8 Sch 8 Historical'!E19), "", 'H8 Sch 8 Historical'!G19) ->  | I17: 0 | J17: 0 | K17: 0 | M17: 0 | O17: 0 | P17: T8
C18: =IF(ISBLANK('H8 Sch 8 Historical'!C20), "", 'H8 Sch 8 Historical'!C20) -> 13 2 | D18: =IF(ISBLANK('H8 Sch 8 Historical'!D20), "", 'H8 Sch 8 Historical'!D20) -> Lease #2 | E18: H8 | F18: =IF(ISBLANK('H8 Sch 8 Historical'!E20), "", 'H8 Sch 8 Historical'!G20) ->  | I18: 0 | J18: 0 | K18: 0 | M18: 0 | O18: 0 | P18: T8
C19: =IF(ISBLANK('H8 Sch 8 Historical'!C21), "", 'H8 Sch 8 Historical'!C21) -> 13 3 | D19: =IF(ISBLANK('H8 Sch 8 Historical'!D21), "", 'H8 Sch 8 Historical'!D21) -> Lease # 3 | E19: H8 | F19: =IF(ISBLANK('H8 Sch 8 Historical'!E21), "", 'H8 Sch 8 Historical'!G21) ->  | I19: 0 | J19: 0 | K19: 0 | M19: 0 | O19: 0 | P19: T8
C20: =IF(ISBLANK('H8 Sch 8 Historical'!C22), "", 'H8 Sch 8 Historical'!C22) -> 13 4 | D20: =IF(ISBLANK('H8 Sch 8 Historical'!D22), "", 'H8 Sch 8 Historical'!D22) -> Lease # 4 | E20: H8 | F20: =IF(ISBLANK('H8 Sch 8 Historical'!E22), "", 'H8 Sch 8 Historical'!G22) ->  | I20: 0 | J20: 0 | K20: 0 | M20: 0 | O20: 0 | P20: T8
C21: =IF(ISBLANK('H8 Sch 8 Historical'!C23), "", 'H8 Sch 8 Historical'!C23) -> 14 | D21: =IF(ISBLANK('H8 Sch 8 Historical'!D23), "", 'H8 Sch 8 Historical'!D23) -> Franchise | E21: H8 | F21: =IF(ISBLANK('H8 Sch 8 Historical'!E23), "", 'H8 Sch 8 Historical'!G23) ->  | I21: 0 | J21: 0 | K21: 0 | M21: 0 | O21: 0 | P21: T8
C22: =IF(ISBLANK('H8 Sch 8 Historical'!C24), "", 'H8 Sch 8 Historical'!C24) -> 17 | D22: =IF(ISBLANK('H8 Sch 8 Historical'!D24), "", 'H8 Sch 8 Historical'!D24) -> New Electrical Generating Equipment Acq'd after Feb 27/00 Other Than Bldgs | E22: H8 | F22: =IF(ISBLANK('H8 Sch 8 Historical'!E24), "", 'H8 Sch 8 Historical'!G24) -> 237206.7356 | I22: 237206.7356 | J22: 0 | K22: 237206.7356 | L22: 0.08 | M22: =IF(+K22<0,+K22,+K22*L22) -> 18976.53885 | O22: 218230.1968 | P22: T8
C23: =IF(ISBLANK('H8 Sch 8 Historical'!C25), "", 'H8 Sch 8 Historical'!C25) -> 42 | D23: =IF(ISBLANK('H8 Sch 8 Historical'!D25), "", 'H8 Sch 8 Historical'!D25) -> Fibre Optic Cable | E23: H8 | F23: =IF(ISBLANK('H8 Sch 8 Historical'!E25), "", 'H8 Sch 8 Historical'!G25) ->  | I23: 0 | J23: 0 | K23: 0 | L23: 0.12 | M23: =IF(+K23<0,+K23,+K23*L23) -> 0 | O23: 0 | P23: T8
C24: =IF(ISBLANK('H8 Sch 8 Historical'!C26), "", 'H8 Sch 8 Historical'!C26) -> 43.1 | D24: =IF(ISBLANK('H8 Sch 8 Historical'!D26), "", 'H8 Sch 8 Historical'!D26) -> Certain Energy-Efficient Electrical Generating Equipment | E24: H8 | F24: =IF(ISBLANK('H8 Sch 8 Historical'!E26), "", 'H8 Sch 8 Historical'!G26) ->  | I24: 0 | J24: 0 | K24: 0 | L24: 0.3 | M24: 0 | O24: 0 | P24: T8
C25: =IF(ISBLANK('H8 Sch 8 Historical'!C27), "", 'H8 Sch 8 Historical'!C27) -> 43.2 | D25: =IF(ISBLANK('H8 Sch 8 Historical'!D27), "", 'H8 Sch 8 Historical'!D27) -> Certain Clean Energy Generation Equipment | E25: H8 | F25: =IF(ISBLANK('H8 Sch 8 Historical'!E27), "", 'H8 Sch 8 Historical'!G27) ->  | I25: 0 | J25: 0 | K25: 0 | L25: 0.5 | M25: 0 | O25: 0 | P25: T8
C26: =IF(ISBLANK('H8 Sch 8 Historical'!C28), "", 'H8 Sch 8 Historical'!C28) -> 45 | D26: =IF(ISBLANK('H8 Sch 8 Historical'!D28), "", 'H8 Sch 8 Historical'!D28) -> Computers & Systems Software acq'd post Mar 22/04 | E26: H8 | F26: =IF(ISBLANK('H8 Sch 8 Historical'!E28), "", 'H8 Sch 8 Historical'!G28) -> 591.9630819 | I26: 591.9630819 | J26: 0 | K26: 591.9630819 | L26: 0.45 | M26: 266.3833868 | O26: 325.579695 | P26: T8
C27: =IF(ISBLANK('H8 Sch 8 Historical'!C29), "", 'H8 Sch 8 Historical'!C29) -> 46 | D27: =IF(ISBLANK('H8 Sch 8 Historical'!D29), "", 'H8 Sch 8 Historical'!D29) -> Data Network Infrastructure Equipment (acq'd post Mar 22/04) | E27: H8 | F27: =IF(ISBLANK('H8 Sch 8 Historical'!E29), "", 'H8 Sch 8 Historical'!G29) -> 6994.40112 | I27: 6994.40112 | J27: 0 | K27: 6994.40112 | L27: 0.3 | M27: 2098.320336 | O27: 4896.080784 | P27: T8
C28: =IF(ISBLANK('H8 Sch 8 Historical'!C30), "", 'H8 Sch 8 Historical'!C30) -> 47 | D28: =IF(ISBLANK('H8 Sch 8 Historical'!D30), "", 'H8 Sch 8 Historical'!D30) -> Distribution System - post February 2005 | E28: H8 | F28: =IF(ISBLANK('H8 Sch 8 Historical'!E30), "", 'H8 Sch 8 Historical'!G30) -> 91980713.07 | G28: 14717243 | H28: -10000 | I28: 106687956.1 | J28: 7353621.5 | K28: 99334334.57 | L28: 0.08 | M28: 7946746.765 | O28: 98741209.3 | P28: T8
C29: =IF(ISBLANK('H8 Sch 8 Historical'!C31), "", 'H8 Sch 8 Historical'!C31) -> 50 | D29: =IF(ISBLANK('H8 Sch 8 Historical'!D31), "", 'H8 Sch 8 Historical'!D31) -> Data Network Infrastructure Equipment - post Mar 2007 | E29: H8 | F29: =IF(ISBLANK('H8 Sch 8 Historical'!E31), "", 'H8 Sch 8 Historical'!G31) -> 749279.49 | G29: 1173557 | I29: 1922836.49 | J29: 586778.5 | K29: 1336057.99 | L29: 0.55 | M29: 734831.8945 | O29: 1188004.595 | P29: T8
C30: =IF(ISBLANK('H8 Sch 8 Historical'!C32), "", 'H8 Sch 8 Historical'!C32) -> 52 | D30: =IF(ISBLANK('H8 Sch 8 Historical'!D32), "", 'H8 Sch 8 Historical'!D32) -> Computer Hardware and system software | E30: H8 | F30: =IF(ISBLANK('H8 Sch 8 Historical'!E32), "", 'H8 Sch 8 Historical'!G32) ->  | I30: 0 | J30: 0 | K30: 0 | L30: 1 | M30: 0 | O30: 0 | P30: T8
C31: =IF(ISBLANK('H8 Sch 8 Historical'!C33), "", 'H8 Sch 8 Historical'!C33) -> 95 | D31: =IF(ISBLANK('H8 Sch 8 Historical'!D33), "", 'H8 Sch 8 Historical'!D33) -> CWIP | E31: H8 | F31: =IF(ISBLANK('H8 Sch 8 Historical'!E33), "", 'H8 Sch 8 Historical'!G33) ->  | I31: 0 | J31: 0 | K31: 0 | L31: 0 | M31: 0 | O31: 0 | P31: T8
C32: 14.1 | D32: Eligible Capital Property (acq'd pre Jan 1, 2017)1 | E32: H8 | F32: =IF(ISBLANK('H8 Sch 8 Historical'!E34), "", 'H8 Sch 8 Historical'!G34) ->  | I32: 0 | J32: 0 | K32: 0 | L32: 0.07 | M32: 0 | O32: 0 | P32: T8
C33: 14.1 | D33: Eligible Capital Property (acq'd post Jan 1, 2017)1 | E33: H8 | F33: =IF(ISBLANK('H8 Sch 8 Historical'!E35), "", 'H8 Sch 8 Historical'!G35) ->  | I33: 0 | J33: 0 | K33: 0 | L33: 0.05 | M33: 0 | O33: 0 | P33: T8
C34: =IF(ISBLANK('H8 Sch 8 Historical'!C36), "", 'H8 Sch 8 Historical'!C36) -> 3 | D34: =IF(ISBLANK('H8 Sch 8 Historical'!D36), "", 'H8 Sch 8 Historical'!D36) -> Most buildings acquired before 1988 or 1990 | F34: ='H8 Sch 8 Historical'!G36 -> 2009117.562 | I34: =MAX((SUM(F34:H34)),0) -> 2009117.562 | J34: 0 | K34: =+I34-J34 -> 2009117.562 | L34: 0.05 | M34: 100455.8781 | O34: 1908661.683
C35: =IF(ISBLANK('H8 Sch 8 Historical'!C37), "", 'H8 Sch 8 Historical'!C37) ->  | D35: =IF(ISBLANK('H8 Sch 8 Historical'!D37), "", 'H8 Sch 8 Historical'!D37) ->  | F35: =IF(ISBLANK('H8 Sch 8 Historical'!E37), "", 'H8 Sch 8 Historical'!G37) -> 0 | I35: =MAX((SUM(F35:H35)),0) -> 0 | J35: 0 | K35: =+I35-J35 -> 0 | L35: 2 | M35: 0 | O35: 0
C36: =IF(ISBLANK('H8 Sch 8 Historical'!C38), "", 'H8 Sch 8 Historical'!C38) -> AIIP | D36: =IF(ISBLANK('H8 Sch 8 Historical'!D38), "", 'H8 Sch 8 Historical'!D38) -> Smoothing Technique | F36: =IF(ISBLANK('H8 Sch 8 Historical'!E38), "", 'H8 Sch 8 Historical'!G38) ->  | I36: =MAX((SUM(F36:H36)),0) -> 0 | J36: 0 | K36: =+I36-J36 -> 0 | L36: 2 | M36: 0 | O36: 0
C37: =IF(ISBLANK('H8 Sch 8 Historical'!C39), "", 'H8 Sch 8 Historical'!C39) ->  | D37: =IF(ISBLANK('H8 Sch 8 Historical'!D39), "", 'H8 Sch 8 Historical'!D39) ->  | F37: =IF(ISBLANK('H8 Sch 8 Historical'!E39), "", 'H8 Sch 8 Historical'!G39) ->  | I37: 0 | J37: 0 | K37: 0 | M37: 0 | O37: 0
C38: =IF(ISBLANK('H8 Sch 8 Historical'!C40), "", 'H8 Sch 8 Historical'!C40) ->  | D38: =IF(ISBLANK('H8 Sch 8 Historical'!D40), "", 'H8 Sch 8 Historical'!D40) ->  | F38: =IF(ISBLANK('H8 Sch 8 Historical'!E40), "", 'H8 Sch 8 Historical'!G40) ->  | I38: 0 | J38: 0 | K38: 0 | M38: 0 | O38: 0
C39: =IF(ISBLANK('H8 Sch 8 Historical'!C41), "", 'H8 Sch 8 Historical'!C41) ->  | D39: =IF(ISBLANK('H8 Sch 8 Historical'!D41), "", 'H8 Sch 8 Historical'!D41) ->  | F39: =IF(ISBLANK('H8 Sch 8 Historical'!E41), "", 'H8 Sch 8 Historical'!G41) ->  | I39: 0 | J39: 0 | K39: 0 | M39: 0 | O39: 0
C40: =IF(ISBLANK('H8 Sch 8 Historical'!C42), "", 'H8 Sch 8 Historical'!C42) ->  | D40: =IF(ISBLANK('H8 Sch 8 Historical'!D42), "", 'H8 Sch 8 Historical'!D42) ->  | F40: =IF(ISBLANK('H8 Sch 8 Historical'!E42), "", 'H8 Sch 8 Historical'!G42) ->  | I40: 0 | J40: 0 | K40: 0 | M40: 0 | O40: 0
C41: =IF(ISBLANK('H8 Sch 8 Historical'!C43), "", 'H8 Sch 8 Historical'!C43) ->  | D41: =IF(ISBLANK('H8 Sch 8 Historical'!D43), "", 'H8 Sch 8 Historical'!D43) ->  | F41: =IF(ISBLANK('H8 Sch 8 Historical'!E43), "", 'H8 Sch 8 Historical'!G43) ->  | I41: 0 | J41: 0 | K41: 0 | M41: 0 | O41: 0
D42: TOTAL | F42: =SUM(F10:F41) -> 194838605.3 | G42: 19040000 | H42: -25000 | I42: 213853605.3 | J42: 9507500 | K42: 204346105.3 | M42: =SUM(M10:M41) -> 14592069.82 | N42: B1 | O42: =SUM(O10:O41) -> 199261535.5
C45: 1. New CCA class 14.1 effective January 1, 2017. The class includes property that was eligible capital property immediately before January 1, 2017. For tax years that end prior to 2027, transitional rules apply to class 14.1 that were acquired before January 1, 2017

Sheet B13 Sch 13 Tax Reserves Bridge
C7: Schedule 13 Tax Reserves - Bridge Year
C9: Continuity of Reserves
I10: Bridge Year Adjustments
C11: Description | D11: Reference | E11: Historical Utility Only | F11: Eliminate Amounts Not Relevant for Bridge Year | G11: Adjusted Utility Balance | I11: Additions | J11: Disposals | K11: Balance for Bridge Year | M11: Change During the Year | N11: Disallowed Expenses
C13: Capital Gains Reserves ss.40(1) | D13: H13 | E13: ='H13 Sch 13 Tax Reserves Histori'!F15 -> 0 | G13: =SUM(E13:F13) -> 0 | K13: =G13+I13-J13 -> 0 | L13: T13 | M13: =+K13-G13 -> 0
C14: Tax Reserves Not Deducted for accounting purposes
C15: Reserve for doubtful accounts ss. 20(1)(l) | D15: H13 | E15: ='H13 Sch 13 Tax Reserves Histori'!F17 -> 0 | G15: =SUM(E15:F15) -> 0 | K15: =G15+I15-J15 -> 0 | L15: T13 | M15: =+K15-G15 -> 0
C16: Reserve for goods and services not delivered ss. 20(1)(m) | D16: H13 | E16: ='H13 Sch 13 Tax Reserves Histori'!F18 -> 0 | G16: 0 | K16: 0 | L16: T13 | M16: 0
C17: Reserve for unpaid amounts ss. 20(1)(n) | D17: H13 | E17: ='H13 Sch 13 Tax Reserves Histori'!F19 -> 0 | G17: 0 | K17: 0 | L17: T13 | M17: 0
C18: Debt & Share Issue Expenses ss. 20(1)(e) | D18: H13 | E18: ='H13 Sch 13 Tax Reserves Histori'!F20 -> 0 | G18: 0 | K18: 0 | L18: T13 | M18: 0
C19: Other tax reserves | D19: H13 | E19: ='H13 Sch 13 Tax Reserves Histori'!F21 -> 0 | G19: 0 | K19: 0 | L19: T13 | M19: 0
E20: ='H13 Sch 13 Tax Reserves Histori'!F25 -> 0 | G20: 0 | K20: 0 | M20: 0
E21: ='H13 Sch 13 Tax Reserves Histori'!F26 -> 0 | G21: 0 | K21: 0 | M21: 0
C22: Total | E22: =SUM(E15:E21) -> 0 | F22: 0 | G22: 0 | H22: B1 | I22: 0 | J22: 0 | K22: 0 | L22: B1 | M22: 0 | N22: 0
E23: 0
C24: Financial Statement Reserves (not deductible for Tax Purposes)
C25: General Reserve for Inventory Obsolescence (non-specific) | D25: H13 | E25: ='H13 Sch 13 Tax Reserves Histori'!F30 -> 0 | G25: =SUM(E25:F25) -> 0 | K25: =G25+I25-J25 -> 0 | L25: T13 | M25: =+K25-G25 -> 0
C26: General reserve for bad debts | D26: H13 | E26: ='H13 Sch 13 Tax Reserves Histori'!F31 -> 0 | G26: 0 | K26: 0 | L26: T13 | M26: 0
C27: Accrued Employee Future Benefits: | D27: H13 | E27: ='H13 Sch 13 Tax Reserves Histori'!F32 -> 0 | G27: 0 | K27: 0 | L27: T13 | M27: 0
C28: - Medical and Life Insurance | D28: H13 | E28: ='H13 Sch 13 Tax Reserves Histori'!F33 -> 0 | G28: 0 | K28: 0 | L28: T13 | M28: 0
C29: -Short & Long-term Disability | D29: H13 | E29: ='H13 Sch 13 Tax Reserves Histori'!F34 -> 0 | G29: 0 | K29: 0 | L29: T13 | M29: 0
C30: -Accmulated Sick Leave | D30: H13 | E30: ='H13 Sch 13 Tax Reserves Histori'!F35 -> 0 | G30: 0 | K30: 0 | L30: T13 | M30: 0
C31: - Termination Cost | D31: H13 | E31: ='H13 Sch 13 Tax Reserves Histori'!F36 -> 0 | G31: 0 | K31: 0 | L31: T13 | M31: 0
C32: - Other Post-Employment Benefits | D32: H13 | E32: ='H13 Sch 13 Tax Reserves Histori'!F37 -> 0 | G32: 0 | K32: 0 | L32: T13 | M32: 0
C33: Provision for Environmental Costs | D33: H13 | E33: ='H13 Sch 13 Tax Reserves Histori'!F38 -> 0 | G33: 0 | K33: 0 | L33: T13 | M33: 0
C34: Restructuring Costs | D34: H13 | E34: ='H13 Sch 13 Tax Reserves Histori'!F39 -> 0 | G34: 0 | K34: 0 | L34: T13 | M34: 0
C35: Accrued Contingent Litigation Costs | D35: H13 | E35: ='H13 Sch 13 Tax Reserves Histori'!F40 -> 0 | G35: 0 | K35: 0 | L35: T13 | M35: 0
C36: Accrued Self-Insurance Costs | D36: H13 | E36: ='H13 Sch 13 Tax Reserves Histori'!F41 -> 0 | G36: 0 | K36: 0 | L36: T13 | M36: 0
C37: Other Contingent Liabilities | D37: H13 | E37: ='H13 Sch 13 Tax Reserves Histori'!F42 -> 0 | G37: 0 | K37: 0 | L37: T13 | M37: 0
C38: Bonuses Accrued and Not Paid Within 180 Days of Year-End ss. 78(4) | D38: H13 | E38: ='H13 Sch 13 Tax Reserves Histori'!F43 -> 0 | G38: 0 | K38: 0 | L38: T13 | M38: 0
C39: Unpaid Amounts to Related Person and Not Paid Within 3 Taxation Years ss. 78(1) | D39: H13 | E39: ='H13 Sch 13 Tax Reserves Histori'!F44 -> 0 | G39: 0 | K39: 0 | L39: T13 | M39: 0
C40: Other | D40: H13 | E40: ='H13 Sch 13 Tax Reserves Histori'!F45 -> 0 | G40: 0 | K40: 0 | L40: T13 | M40: 0
E41: ='H13 Sch 13 Tax Reserves Histori'!F49 -> 0 | G41: =SUM(E41:F41) -> 0 | K41: 0 | M41: =+K41-G41 -> 0
E42: ='H13 Sch 13 Tax Reserves Histori'!F50 -> 0 | G42: =SUM(E42:F42) -> 0 | K42: 0 | M42: =+K42-G42 -> 0
C43: Total | E43: =SUM(E25:E42) -> 0 | F43: =SUM(F25:F42) -> 0 | G43: 0 | H43: B1 | I43: 0 | J43: 0 | K43: 0 | L43: B1 | M43: 0 | N43: 0
E44: 0

Sheet T0 PILs,Tax Provision
T1: Rate Base | U1: Federal Tax Rate
T2: 500000 | U2: 0.11
T3: 10000000 | U3: 0.11
T4: =T3+100000 -> 10100000 | U4: 0.11
T5: =T4+100000 -> 10200000 | U5: 0.11
B6: PILs Tax Provision - Test Year | T6: 10300000 | U6: 0.11
T7: 10400000 | U7: 0.11
J8: Wires Only | T8: 10500000 | U8: 0.11
T9: 10600000 | U9: 0.11
C10: Regulatory Taxable Income | I10: T1 | J10: ='T1 Taxable Income Test Year'!F123 -> 21336.71238 | K10: A | T10: 10700000 | U10: 0.11
T11: 10800000 | U11: 0.11
D12: Tax Rate | E12: Small Business Rate (If Applicable) | F12: Taxes Payable | G12: Effective Tax Rate
C13: Ontario (Max 11.5%) | D13: 0.115 | E13: =IF(ratebase<=10000000, ontario_SB, IF(ratebase>=15000000, ontariotax, IF(AND(ratebase>10000000, ratebase<15000000), ontario_SB+ (ratebase - 10000000)*(ontariotax - ontario_SB)/(15000000-10000000)))) -> 0.115 | F13: =IF(J10<500000,J10,500000)*E13+IF(J10>500000,J10-500000,0)*D13 -> 2453.721924 | G13: =IF(F13=0,0,+F13/J10) -> 0.115 | H13: B
C14: Federal (Max 15%) | D14: 0.15 | E14: =IF(ratebase<=10000000, Fed_SB, IF(ratebase>=15000000, FedTax, IF(AND(ratebase>10000000, ratebase<15000000), Fed_SB+ (ratebase - 10000000)*(FedTax -Fed_SB)/(15000000-10000000)))) -> 0.15 | F14: =E14*IF(J10<500000,J10,500000)+IF(J10>500000,J10-500000,0)*D14 -> 3200.506857 | G14: =IF(F14=0,0,+F14/J10) -> 0.15 | H14: C
C16: Combined effective tax rate (Max 26.5%) | J16: =SUM(G13:G14) -> 0.265 | K16: D = B + C | T16: =#REF!+100000 ->  | U16: =#REF!+0.112% -> 
U17: =U16+0.112% -> 
C19: Total Income Taxes | J19: =J10*J16 -> 5654.228781 | K19: E = A * D
U20: =U19+0.102% -> 
C21: Investment Tax Credits | J21: 62000 | K21: F | U21: =U20+0.102% -> 
C22: Miscellaneous Tax Credits | K22: G | U22: =U21+0.102% -> 
C23: Total Tax Credits | J23: =SUM(J21:J22) -> 62000 | K23: H = F + G | U23: =U22+0.102% -> 
U24: =U23+0.102% -> 
C25: Corporate PILs/Income Tax Provision for Test Year | J25: =IF(J19-J23<0,0,J19-J23) -> 0 | K25: I = E - H | L25: S. Summary | U25: =U24+0.096% -> 
U26: =U25+0.096% -> 
C27: Corporate PILs/Income Tax Provision Gross Up 1 | H27: =(1-J16) -> 0.735 | I27: J = 1-D | J27: =J25/H27-J25 -> 0 | K27: K = I/J-I | U27: =U26+0.096% -> 
U28: =U27+0.096% -> 
U29: =U28+0.096% -> 
C30: Income Tax (grossed-up) | J30: =J25+J27 -> 0 | K30: L = K + I | L30: S. Summary | U30: =U29+0.088% -> 
U31: =U30+0.088% -> 
U32: =U31+0.088% -> 
C33: Note: | U33: =U32+0.088% -> 
C34: 1. This is for the derivation of revenue requirement and should not be used for sufficiency/deficiency calculations. | U34: =U33+0.088% -> 
U35: =U34+0.082% -> 
U36: =U35+0.082% -> 
U37: =U36+0.082% -> 
U38: =U37+0.082% -> 
U39: =U38+0.082% -> 
U40: =U39+0.076% -> 
U41: =U40+0.076% -> 
U42: =U41+0.076% -> 
U43: =U42+0.076% -> 
U44: 0.15

Sheet T1 Taxable Income Test Year
C10: Taxable Income - Test Year
E11: Working Paper Reference | F11: Test Year Taxable Income
C12: Net Income Before Taxes | E12: A. | F12: ='A. Data Input Sheet'!G18 -> 8598090.442
D14: T2 S1 line #
C15: Additions:
C16: Interest and penalties on taxes | D16: 103
C17: Amortization of tangible assets 2-4 ADJUSTED ACCOUNTING DATA P489 | D17: 104 | F17: 10245488
C18: Amortization of intangible assets 2-4 ADJUSTED ACCOUNTING DATA P490 | D18: 106
C19: Recapture of capital cost allowance from Schedule 8 | D19: 107
C20: Gain on sale of eligible capital property from Schedule 10 | D20: 108
C21: Income or loss for tax purposes- joint ventures or partnerships | D21: 109
C22: Loss in equity of subsidiaries and affiliates | D22: 110
C23: Loss on disposal of assets | D23: 111
C24: Charitable donations | D24: 112
C25: Taxable Capital Gains | D25: 113
C26: Political Donations | D26: 114
C27: Deferred and prepaid expenses | D27: 116
C28: Scientific research expenditures deducted on financial statements | D28: 118
C29: Capitalized interest | D29: 119
C30: Non-deductible club dues and fees | D30: 120
C31: Non-deductible meals and entertainment expense | D31: 121 | F31: 32950
C32: Non-deductible automobile expenses | D32: 122
C33: Non-deductible life insurance premiums | D33: 123
C34: Non-deductible company pension plans | D34: 124
C35: Tax reserves beginning of year | D35: 125 | E35: T13 | F35: ='T13 Sch 13 Reserve Test Year'!G22 -> 0
C36: Reserves from financial statements- balance at end of year | D36: 126 | E36: T13 | F36: ='T13 Sch 13 Reserve Test Year'!K43 -> 0
C37: Soft costs on construction and renovation of buildings | D37: 127
C38: Book loss on joint ventures or partnerships | D38: 205
C39: Capital items expensed | D39: 206
C40: Debt issue expense | D40: 208
C41: Development expenses claimed in current year | D41: 212
C42: Financing fees deducted in books | D42: 216
C43: Gain on settlement of debt | D43: 220
C44: Non-deductible advertising | D44: 226
C45: Non-deductible interest | D45: 227
C46: Non-deductible legal and accounting fees | D46: 228
C47: Recapture of SR&ED expenditures | D47: 231
C48: Share issue expense | D48: 235
C49: Write down of capital property | D49: 236
C50: Amounts received in respect of qualifying environment trust per paragraphs 12(1)(z.1) and 12(1)(z.2) | D50: 237
C51: Other Additions: (please explain in detail the nature of the item)
C52: Interest Expensed on Capital Leases | D52: 290
C53: Realized Income from Deferred Credit Accounts | D53: 291
C54: Pensions | D54: 292
C55: Non-deductible penalties | D55: 293
D56: 294
D57: 295
D58: 296
D59: 297
C60: ARO Accretion expense
C61: Capital Contributions Received (ITA 12(1)(x))
C62: Lease Inducements Received (ITA 12(1)(x))
C63: Deferred Revenue (ITA 12(1)(a))
C64: Prior Year Investment Tax Credits received | F64: 85000
C65: Accrued PBO & Bad debt expense | F65: 561700
C75: Total Additions | F75: =SUM(F16:F74) -> 10925138
C76: Deductions:
C77: Gain on disposal of assets per financial statements | D77: 401 | F77: 15000
C78: Dividends not taxable under section 83 | D78: 402
C79: Capital cost allowance from Schedule 8 | D79: 403 | E79: T8 | F79: ='T8 Schedule 8 CCA Test Year '!M43 -> 19000991.73
C80: Terminal loss from Schedule 8 | D80: 404
C81: Allowable business investment loss | D81: 406
C82: Deferred and prepaid expenses | D82: 409
C83: Scientific research expenses claimed in year | D83: 411
C84: Tax reserves end of year | D84: 413 | E84: T13 | F84: ='T13 Sch 13 Reserve Test Year'!K22 -> 0
C85: Reserves from financial statements - balance at beginning of year | D85: 414 | E85: T13 | F85: ='T13 Sch 13 Reserve Test Year'!G43 -> 0
C86: Contributions to deferred income plans | D86: 416
C87: Book income of joint venture or partnership | D87: 305
C88: Equity in income from subsidiary or affiliates | D88: 306
C89: Other deductions: (Please explain in detail the nature of the item)
C90: Interest capitalized for accounting deducted for tax | D90: 390
C91: Capital Lease Payments | D91: 391
C92: Non-taxable imputed interest income on deferral and variance accounts | D92: 392
C93: 1 | D93: 393
C94: 1 | D94: 394
C95: 1 | D95: 395
C96: 1 | D96: 396
C97: 1 | D97: 397
C98: ARO Payments - Deductible for Tax when Paid
C99: ITA 13(7.4) Election - Capital Contributions Received
C100: ITA 13(7.4) Election - Apply Lease Inducement to cost of Leaseholds
C101: Deferred Revenue - ITA 20(1)(m) reserve
C102: Principal portion of lease payments
C103: Lease Inducement Book Amortization credit to income
C104: Financing fees for tax ITA 20(1)(e) and (e.1)
C105: Actual PBO & bad debt expense | F105: 485900
C113: Total Deductions | E113: calculated | F113: =SUM(F77:F112) -> 19501891.73
C115: NET INCOME FOR TAX PURPOSES | E115: calculated | F115: =SUM(F12,F75)-F113 -> 21336.71238
C117: Charitable donations | D117: 311
C118: Taxable dividends received under section 112 or 113 | D118: 320
C119: Non-capital losses of preceding taxation years from Schedule 7-1 | D119: 331 | E119: T4 | F119: ='T4 Sch 4 Loss Cfwd'!I15 -> 0
C120: Net-capital losses of preceding taxation years (Please show calculation) | D120: 332 | E120: T4 | F120: ='T4 Sch 4 Loss Cfwd'!G25*-1 -> 0
C121: Limited partnership losses of preceding taxation years from Schedule 4 | D121: 335
C123: REGULATORY TAXABLE INCOME | E123: calculated | F123: =IF(F115<0,F115,F115-SUM(F117:F122)) -> 21336.71238 | G123: T0

Sheet T4 Sch 4 Loss Cfwd
C7: Schedule 7-1 Loss Carry Forward - Test Year
C9: Corporation Loss Continuity and Application
C11: Non-Capital Loss Carry Forward Deduction | F11: Working Paper Reference | G11: Total | H11: Non-Distribution Portion | I11: Utility Balance
C12: Actual/Estimated Bridge Year Carried Forward | F12: B4 | G12: ='B4 Sch 4 Loss Cfwd Bridge'!G16 -> 0 | I12: =G12-H12 -> 0
C13: Amount to be used in Test Year and Price Cap Years | F13: T1 | G13: =IF('T1 Taxable Income Test Year'!F115<0,0,IF('T1 Taxable Income Test Year'!F115>G12,G12,'T1 Taxable Income Test Year'!F115)) -> 0 | I13: =G13-H13 -> 0
C14: Number of years loss until next cost of service (i.e. years the loss is to be spread over)
C15: Amount to be used in Test Year | F15: calculated | G15: =IF(ISERROR(G13/G14),G13,G13/G14) -> 0 | I15: =G15-H15 -> 0
C16: Loss Carry Forward Generated in Test Year (if any) | F16: T1 | G16: =IF('T1 Taxable Income Test Year'!F115<0,'T1 Taxable Income Test Year'!F115*-1,0) -> 0 | I16: =G16-H16 -> 0
C17: Other Adjustments | I17: =G17-H17 -> 0
C18: Balance available for use in Future Years | F18: calculated | G18: =G12-G13+G16+G17 -> 0 | I18: =G18-H18 -> 0
C21: Net Capital Loss Carry Forward Deduction | G21: Total | H21: Non-Distribution Portion | I21: Utility Balance
C22: Actual/Estimated Bridge Year Carried Forward | F22: B4 | G22: ='B4 Sch 4 Loss Cfwd Bridge'!G23 -> 0 | I22: =G22-H22 -> 0
C23: Amount to be used in Test Year and Price Cap Years | I23: =G23-H23 -> 0
C24: Number of years loss until next cost of service (i.e. years the loss is to be spread over)
C25: Amount to be used in Test Year | F25: T1 | G25: =IF(ISERROR(G23/G24),G23,G23/G24) -> 0 | I25: =G25-H25 -> 0
C26: Loss Carry Forward Generated in Test Year (if any) | I26: =G26-H26 -> 0
C27: Other Adjustments | I27: =G27-H27 -> 0
C28: Balance available for use in Future Years | G28: =G22-G23+G26+G27 -> 0 | I28: =G28-H28 -> 0

Sheet T8 Schedule 8 CCA Test Year
B7: Schedule 8 CCA - Test Year
C10: Class | D10: Class Description | E10: Working Paper Reference | F10: UCC Test Year Opening Balance | G10: Additions | H10: Disposals (Negative) | I10: UCC Before 1/2 Yr Adjustment | J10: 1/2 Year Rule {1/2 Additions Less Disposals} | K10: Reduced UCC | L10: Rate % | M10: Test Year CCA | O10: UCC End of Test Year
C11: =IF(ISBLANK('B8 Schedule 8 CCA Bridge Year'!C10), "", 'B8 Schedule 8 CCA Bridge Year'!C10) -> 1 | D11: =IF(ISBLANK('B8 Schedule 8 CCA Bridge Year'!D10), "", 'B8 Schedule 8 CCA Bridge Year'!D10) -> Distribution System - post 1987 | E11: B8 | F11: =IF(ISBLANK('B8 Schedule 8 CCA Bridge Year'!O10), "", 'B8 Schedule 8 CCA Bridge Year'!O10) -> 74583437.68 | I11: =MAX((SUM(F11:H11)),0) -> 74583437.68 | J11: =IF((G11+H11)<=0, 0,(G11+H11)*0.5) -> 0 | K11: =+I11-J11 -> 74583437.68 | L11: ='B8 Schedule 8 CCA Bridge Year'!L10 -> 0.04 | M11: =IF(+K11<0,+K11,+K11*L11) -> 2983337.507 | O11: =MAX(0,+I11-M11) -> 71600100.17
C12: =IF(ISBLANK('B8 Schedule 8 CCA Bridge Year'!C11), "", 'B8 Schedule 8 CCA Bridge Year'!C11) -> 1 Enhanced | D12: =IF(ISBLANK('B8 Schedule 8 CCA Bridge Year'!D11), "", 'B8 Schedule 8 CCA Bridge Year'!D11) -> Non-residential Buildings Reg. 1100(1)(a.1) election | E12: B8 | F12: =IF(ISBLANK('B8 Schedule 8 CCA Bridge Year'!O11), "", 'B8 Schedule 8 CCA Bridge Year'!O11) -> 10362013.42 | G12: 750000 | I12: 11112013.42 | J12: =IF((G12+H12)<=0, 0,(G12+H12)*0.5) -> 375000 | K12: 10737013.42 | L12: ='B8 Schedule 8 CCA Bridge Year'!L11 -> 0.06 | M12: 644220.8055 | O12: 10467792.62
C13: =IF(ISBLANK('B8 Schedule 8 CCA Bridge Year'!C12), "", 'B8 Schedule 8 CCA Bridge Year'!C12) -> 2 | D13: =IF(ISBLANK('B8 Schedule 8 CCA Bridge Year'!D12), "", 'B8 Schedule 8 CCA Bridge Year'!D12) -> Distribution System - pre 1988 | E13: B8 | F13: =IF(ISBLANK('B8 Schedule 8 CCA Bridge Year'!O12), "", 'B8 Schedule 8 CCA Bridge Year'!O12) -> 5494641.029 | I13: 5494641.029 | J13: 0 | K13: 5494641.029 | L13: ='B8 Schedule 8 CCA Bridge Year'!L12 -> 0.06 | M13: 329678.4617 | O13: 5164962.567
C14: =IF(ISBLANK('B8 Schedule 8 CCA Bridge Year'!C13), "", 'B8 Schedule 8 CCA Bridge Year'!C13) -> 8 | D14: =IF(ISBLANK('B8 Schedule 8 CCA Bridge Year'!D13), "", 'B8 Schedule 8 CCA Bridge Year'!D13) -> General Office/Stores Equip | E14: B8 | F14: =IF(ISBLANK('B8 Schedule 8 CCA Bridge Year'!O13), "", 'B8 Schedule 8 CCA Bridge Year'!O13) -> 4308221.661 | G14: 807000 | I14: 5115221.661 | J14: 403500 | K14: 4711721.661 | L14: ='B8 Schedule 8 CCA Bridge Year'!L13 -> 0.2 | M14: 942344.3322 | O14: 4172877.329
C15: =IF(ISBLANK('B8 Schedule 8 CCA Bridge Year'!C14), "", 'B8 Schedule 8 CCA Bridge Year'!C14) -> 10 | D15: =IF(ISBLANK('B8 Schedule 8 CCA Bridge Year'!D14), "", 'B8 Schedule 8 CCA Bridge Year'!D14) -> Computer Hardware/ Vehicles | E15: B8 | F15: =IF(ISBLANK('B8 Schedule 8 CCA Bridge Year'!O14), "", 'B8 Schedule 8 CCA Bridge Year'!O14) -> 2451894.255 | G15: 1000000 | H15: -15000 | I15: 3436894.255 | J15: 492500 | K15: 2944394.255 | L15: ='B8 Schedule 8 CCA Bridge Year'!L14 -> 0.3 | M15: 883318.2766 | O15: 2553575.979
C16: =IF(ISBLANK('B8 Schedule 8 CCA Bridge Year'!C15), "", 'B8 Schedule 8 CCA Bridge Year'!C15) -> 10.1 | D16: =IF(ISBLANK('B8 Schedule 8 CCA Bridge Year'!D15), "", 'B8 Schedule 8 CCA Bridge Year'!D15) -> Certain Automobiles | E16: B8 | F16: =IF(ISBLANK('B8 Schedule 8 CCA Bridge Year'!O15), "", 'B8 Schedule 8 CCA Bridge Year'!O15) -> 0 | I16: 0 | J16: 0 | K16: 0 | L16: ='B8 Schedule 8 CCA Bridge Year'!L15 -> 0.3 | M16: 0 | O16: 0
C17: =IF(ISBLANK('B8 Schedule 8 CCA Bridge Year'!C16), "", 'B8 Schedule 8 CCA Bridge Year'!C16) -> 12 | D17: =IF(ISBLANK('B8 Schedule 8 CCA Bridge Year'!D16), "", 'B8 Schedule 8 CCA Bridge Year'!D16) -> Computer Software | E17: B8 | F17: =IF(ISBLANK('B8 Schedule 8 CCA Bridge Year'!O16), "", 'B8 Schedule 8 CCA Bridge Year'!O16) -> 0 | I17: 0 | J17: 0 | K17: 0 | L17: ='B8 Schedule 8 CCA Bridge Year'!L16 -> 1 | M17: 0 | O17: 0
C18: =IF(ISBLANK('B8 Schedule 8 CCA Bridge Year'!C17), "", 'B8 Schedule 8 CCA Bridge Year'!C17) -> 13 1 | D18: =IF(ISBLANK('B8 Schedule 8 CCA Bridge Year'!D17), "", 'B8 Schedule 8 CCA Bridge Year'!D17) -> Lease # 1 | E18: B8 | F18: =IF(ISBLANK('B8 Schedule 8 CCA Bridge Year'!O17), "", 'B8 Schedule 8 CCA Bridge Year'!O17) -> 0 | I18: 0 | J18: 0 | K18: 0 | M18: 0 | O18: 0
C19: =IF(ISBLANK('B8 Schedule 8 CCA Bridge Year'!C18), "", 'B8 Schedule 8 CCA Bridge Year'!C18) -> 13 2 | D19: =IF(ISBLANK('B8 Schedule 8 CCA Bridge Year'!D18), "", 'B8 Schedule 8 CCA Bridge Year'!D18) -> Lease #2 | E19: B8 | F19: =IF(ISBLANK('B8 Schedule 8 CCA Bridge Year'!O18), "", 'B8 Schedule 8 CCA Bridge Year'!O18) -> 0 | I19: 0 | J19: 0 | K19: 0 | M19: 0 | O19: 0
C20: =IF(ISBLANK('B8 Schedule 8 CCA Bridge Year'!C19), "", 'B8 Schedule 8 CCA Bridge Year'!C19) -> 13 3 | D20: =IF(ISBLANK('B8 Schedule 8 CCA Bridge Year'!D19), "", 'B8 Schedule 8 CCA Bridge Year'!D19) -> Lease # 3 | E20: B8 | F20: =IF(ISBLANK('B8 Schedule 8 CCA Bridge Year'!O19), "", 'B8 Schedule 8 CCA Bridge Year'!O19) -> 0 | I20: 0 | J20: 0 | K20: 0 | M20: 0 | O20: 0
C21: =IF(ISBLANK('B8 Schedule 8 CCA Bridge Year'!C20), "", 'B8 Schedule 8 CCA Bridge Year'!C20) -> 13 4 | D21: =IF(ISBLANK('B8 Schedule 8 CCA Bridge Year'!D20), "", 'B8 Schedule 8 CCA Bridge Year'!D20) -> Lease # 4 | E21: B8 | F21: =IF(ISBLANK('B8 Schedule 8 CCA Bridge Year'!O20), "", 'B8 Schedule 8 CCA Bridge Year'!O20) -> 0 | I21: 0 | J21: 0 | K21: 0 | M21: 0 | O21: 0
C22: =IF(ISBLANK('B8 Schedule 8 CCA Bridge Year'!C21), "", 'B8 Schedule 8 CCA Bridge Year'!C21) -> 14 | D22: =IF(ISBLANK('B8 Schedule 8 CCA Bridge Year'!D21), "", 'B8 Schedule 8 CCA Bridge Year'!D21) -> Franchise | E22: B8 | F22: =IF(ISBLANK('B8 Schedule 8 CCA Bridge Year'!O21), "", 'B8 Schedule 8 CCA Bridge Year'!O21) -> 0 | I22: 0 | J22: 0 | K22: 0 | M22: 0 | O22: 0
C23: =IF(ISBLANK('B8 Schedule 8 CCA Bridge Year'!C22), "", 'B8 Schedule 8 CCA Bridge Year'!C22) -> 17 | D23: =IF(ISBLANK('B8 Schedule 8 CCA Bridge Year'!D22), "", 'B8 Schedule 8 CCA Bridge Year'!D22) -> New Electrical Generating Equipment Acq'd after Feb 27/00 Other Than Bldgs | E23: B8 | F23: =IF(ISBLANK('B8 Schedule 8 CCA Bridge Year'!O22), "", 'B8 Schedule 8 CCA Bridge Year'!O22) -> 218230.1968 | I23: 218230.1968 | J23: 0 | K23: 218230.1968 | L23: ='B8 Schedule 8 CCA Bridge Year'!L22 -> 0.08 | M23: 17458.41574 | O23: 200771.781
C24: =IF(ISBLANK('B8 Schedule 8 CCA Bridge Year'!C23), "", 'B8 Schedule 8 CCA Bridge Year'!C23) -> 42 | D24: =IF(ISBLANK('B8 Schedule 8 CCA Bridge Year'!D23), "", 'B8 Schedule 8 CCA Bridge Year'!D23) -> Fibre Optic Cable | E24: B8 | F24: =IF(ISBLANK('B8 Schedule 8 CCA Bridge Year'!O23), "", 'B8 Schedule 8 CCA Bridge Year'!O23) -> 0 | I24: 0 | J24: 0 | K24: 0 | L24: ='B8 Schedule 8 CCA Bridge Year'!L23 -> 0.12 | M24: =IF(+K24<0,+K24,+K24*L24) -> 0 | O24: 0
C25: =IF(ISBLANK('B8 Schedule 8 CCA Bridge Year'!C24), "", 'B8 Schedule 8 CCA Bridge Year'!C24) -> 43.1 | D25: =IF(ISBLANK('B8 Schedule 8 CCA Bridge Year'!D24), "", 'B8 Schedule 8 CCA Bridge Year'!D24) -> Certain Energy-Efficient Electrical Generating Equipment | E25: B8 | F25: =IF(ISBLANK('B8 Schedule 8 CCA Bridge Year'!O24), "", 'B8 Schedule 8 CCA Bridge Year'!O24) -> 0 | I25: 0 | J25: 0 | K25: 0 | L25: ='B8 Schedule 8 CCA Bridge Year'!L24 -> 0.3 | M25: 0 | O25: 0
C26: =IF(ISBLANK('B8 Schedule 8 CCA Bridge Year'!C25), "", 'B8 Schedule 8 CCA Bridge Year'!C25) -> 43.2 | D26: =IF(ISBLANK('B8 Schedule 8 CCA Bridge Year'!D25), "", 'B8 Schedule 8 CCA Bridge Year'!D25) -> Certain Clean Energy Generation Equipment | E26: B8 | F26: =IF(ISBLANK('B8 Schedule 8 CCA Bridge Year'!O25), "", 'B8 Schedule 8 CCA Bridge Year'!O25) -> 0 | I26: 0 | J26: 0 | K26: 0 | L26: ='B8 Schedule 8 CCA Bridge Year'!L25 -> 0.5 | M26: 0 | O26: 0
C27: =IF(ISBLANK('B8 Schedule 8 CCA Bridge Year'!C26), "", 'B8 Schedule 8 CCA Bridge Year'!C26) -> 45 | D27: =IF(ISBLANK('B8 Schedule 8 CCA Bridge Year'!D26), "", 'B8 Schedule 8 CCA Bridge Year'!D26) -> Computers & Systems Software acq'd post Mar 22/04 | E27: B8 | F27: =IF(ISBLANK('B8 Schedule 8 CCA Bridge Year'!O26), "", 'B8 Schedule 8 CCA Bridge Year'!O26) -> 325.579695 | I27: 325.579695 | J27: 0 | K27: 325.579695 | L27: ='B8 Schedule 8 CCA Bridge Year'!L26 -> 0.45 | M27: 146.5108628 | O27: 179.0688323
C28: =IF(ISBLANK('B8 Schedule 8 CCA Bridge Year'!C27), "", 'B8 Schedule 8 CCA Bridge Year'!C27) -> 46 | D28: =IF(ISBLANK('B8 Schedule 8 CCA Bridge Year'!D27), "", 'B8 Schedule 8 CCA Bridge Year'!D27) -> Data Network Infrastructure Equipment (acq'd post Mar 22/04) | E28: B8 | F28: =IF(ISBLANK('B8 Schedule 8 CCA Bridge Year'!O27), "", 'B8 Schedule 8 CCA Bridge Year'!O27) -> 4896.080784 | I28: 4896.080784 | J28: 0 | K28: 4896.080784 | L28: ='B8 Schedule 8 CCA Bridge Year'!L27 -> 0.3 | M28: 1468.824235 | O28: 3427.256549
C29: =IF(ISBLANK('B8 Schedule 8 CCA Bridge Year'!C28), "", 'B8 Schedule 8 CCA Bridge Year'!C28) -> 47 | D29: =IF(ISBLANK('B8 Schedule 8 CCA Bridge Year'!D28), "", 'B8 Schedule 8 CCA Bridge Year'!D28) -> Distribution System - post February 2005 | E29: B8 | F29: =IF(ISBLANK('B8 Schedule 8 CCA Bridge Year'!O28), "", 'B8 Schedule 8 CCA Bridge Year'!O28) -> 98741209.3 | G29: 14003756 | H29: -10000 | I29: 112734965.3 | J29: 6996878 | K29: 105738087.3 | L29: ='B8 Schedule 8 CCA Bridge Year'!L28 -> 0.08 | M29: 8459046.984 | O29: 104275918.3
C30: =IF(ISBLANK('B8 Schedule 8 CCA Bridge Year'!C29), "", 'B8 Schedule 8 CCA Bridge Year'!C29) -> 50 | D30: =IF(ISBLANK('B8 Schedule 8 CCA Bridge Year'!D29), "", 'B8 Schedule 8 CCA Bridge Year'!D29) -> Data Network Infrastructure Equipment - post Mar 2007 | E30: B8 | F30: =IF(ISBLANK('B8 Schedule 8 CCA Bridge Year'!O29), "", 'B8 Schedule 8 CCA Bridge Year'!O29) -> 1188004.595 | G30: 8135000 | I30: 9323004.595 | J30: 4067500 | K30: 5255504.595 | L30: ='B8 Schedule 8 CCA Bridge Year'!L29 -> 0.55 | M30: 2890527.528 | O30: 6432477.068
C31: =IF(ISBLANK('B8 Schedule 8 CCA Bridge Year'!C30), "", 'B8 Schedule 8 CCA Bridge Year'!C30) -> 52 | D31: =IF(ISBLANK('B8 Schedule 8 CCA Bridge Year'!D30), "", 'B8 Schedule 8 CCA Bridge Year'!D30) -> Computer Hardware and system software | E31: B8 | F31: =IF(ISBLANK('B8 Schedule 8 CCA Bridge Year'!O30), "", 'B8 Schedule 8 CCA Bridge Year'!O30) -> 0 | I31: 0 | J31: 0 | K31: 0 | L31: ='B8 Schedule 8 CCA Bridge Year'!L30 -> 1 | M31: 0 | O31: 0
C32: =IF(ISBLANK('B8 Schedule 8 CCA Bridge Year'!C31), "", 'B8 Schedule 8 CCA Bridge Year'!C31) -> 95 | D32: =IF(ISBLANK('B8 Schedule 8 CCA Bridge Year'!D31), "", 'B8 Schedule 8 CCA Bridge Year'!D31) -> CWIP | E32: B8 | F32: =IF(ISBLANK('B8 Schedule 8 CCA Bridge Year'!O31), "", 'B8 Schedule 8 CCA Bridge Year'!O31) -> 0 | I32: 0 | J32: 0 | K32: 0 | L32: ='B8 Schedule 8 CCA Bridge Year'!L31 -> 0 | M32: 0 | O32: 0
C33: =IF(ISBLANK('B8 Schedule 8 CCA Bridge Year'!C32), "", 'B8 Schedule 8 CCA Bridge Year'!C32) -> 14.1 | D33: =IF(ISBLANK('B8 Schedule 8 CCA Bridge Year'!D32), "", 'B8 Schedule 8 CCA Bridge Year'!D32) -> Eligible Capital Property (acq'd pre Jan 1, 2017)1 | E33: B8 | F33: =IF(ISBLANK('B8 Schedule 8 CCA Bridge Year'!O32), "", 'B8 Schedule 8 CCA Bridge Year'!O32) -> 0 | I33: 0 | J33: 0 | K33: 0 | L33: ='B8 Schedule 8 CCA Bridge Year'!L32 -> 0.07 | M33: 0 | O33: 0
C34: =IF(ISBLANK('B8 Schedule 8 CCA Bridge Year'!C33), "", 'B8 Schedule 8 CCA Bridge Year'!C33) -> 14.1 | D34: =IF(ISBLANK('B8 Schedule 8 CCA Bridge Year'!D33), "", 'B8 Schedule 8 CCA Bridge Year'!D33) -> Eligible Capital Property (acq'd post Jan 1, 2017)1 | E34: B8 | F34: =IF(ISBLANK('B8 Schedule 8 CCA Bridge Year'!O33), "", 'B8 Schedule 8 CCA Bridge Year'!O33) -> 0 | I34: 0 | J34: 0 | K34: 0 | L34: ='B8 Schedule 8 CCA Bridge Year'!L33 -> 0.05 | M34: 0 | O34: 0
C35: =IF(ISBLANK('B8 Schedule 8 CCA Bridge Year'!C34), "", 'B8 Schedule 8 CCA Bridge Year'!C34) -> 3 | D35: =IF(ISBLANK('B8 Schedule 8 CCA Bridge Year'!D34), "", 'B8 Schedule 8 CCA Bridge Year'!D34) -> Most buildings acquired before 1988 or 1990 | F35: =IF(ISBLANK('B8 Schedule 8 CCA Bridge Year'!O34), "", 'B8 Schedule 8 CCA Bridge Year'!O34) -> 1908661.683 | I35: 1908661.683 | J35: 0 | K35: 1908661.683 | L35: ='B8 Schedule 8 CCA Bridge Year'!L34 -> 0.05 | M35: 95433.08417 | O35: 1813228.599
C36: 50 | D36: Adjustment for CIS software | F36: =IF(ISBLANK('B8 Schedule 8 CCA Bridge Year'!O35), "", 'B8 Schedule 8 CCA Bridge Year'!O35) -> 0 | I36: =MAX((SUM(F36:H36)),0) -> 0 | J36: 0 | K36: =+I36-J36 -> 0 | L36: ='B8 Schedule 8 CCA Bridge Year'!L35 -> 2 | M36: =IF(+K36<0,+K36,+K36*L36) -> 0 | O36: 0
C37: =IF(ISBLANK('B8 Schedule 8 CCA Bridge Year'!C36), "", 'B8 Schedule 8 CCA Bridge Year'!C36) -> AIIP | D37: =IF(ISBLANK('B8 Schedule 8 CCA Bridge Year'!D36), "", 'B8 Schedule 8 CCA Bridge Year'!D36) -> Smoothing Technique | F37: =IF(ISBLANK('B8 Schedule 8 CCA Bridge Year'!O36), "", 'B8 Schedule 8 CCA Bridge Year'!O36) -> 0 | G37: 1754011 | I37: =MAX((SUM(F37:H37)),0) -> 1754011 | J37: 877005.5 | K37: =+I37-J37 -> 877005.5 | L37: ='B8 Schedule 8 CCA Bridge Year'!L36 -> 2 | M37: =IF(+K37<0,+K37,+K37*L37) -> 1754011 | O37: 0
C38: =IF(ISBLANK('B8 Schedule 8 CCA Bridge Year'!C37), "", 'B8 Schedule 8 CCA Bridge Year'!C37) ->  | D38: =IF(ISBLANK('B8 Schedule 8 CCA Bridge Year'!D37), "", 'B8 Schedule 8 CCA Bridge Year'!D37) ->  | F38: =IF(ISBLANK('B8 Schedule 8 CCA Bridge Year'!O37), "", 'B8 Schedule 8 CCA Bridge Year'!O37) -> 0 | I38: =MAX((SUM(F38:H38)),0) -> 0 | J38: 0 | K38: =+I38-J38 -> 0 | L38: ='B8 Schedule 8 CCA Bridge Year'!L37 -> 0 | M38: =IF(+K38<0,+K38,+K38*L38) -> 0 | O38: 0
C39: =IF(ISBLANK('B8 Schedule 8 CCA Bridge Year'!C38), "", 'B8 Schedule 8 CCA Bridge Year'!C38) ->  | D39: =IF(ISBLANK('B8 Schedule 8 CCA Bridge Year'!D38), "", 'B8 Schedule 8 CCA Bridge Year'!D38) ->  | F39: =IF(ISBLANK('B8 Schedule 8 CCA Bridge Year'!O38), "", 'B8 Schedule 8 CCA Bridge Year'!O38) -> 0 | I39: 0 | J39: 0 | K39: 0 | L39: ='B8 Schedule 8 CCA Bridge Year'!L38 -> 0 | M39: 0 | O39: 0
C40: =IF(ISBLANK('B8 Schedule 8 CCA Bridge Year'!C39), "", 'B8 Schedule 8 CCA Bridge Year'!C39) ->  | D40: =IF(ISBLANK('B8 Schedule 8 CCA Bridge Year'!D39), "", 'B8 Schedule 8 CCA Bridge Year'!D39) ->  | F40: =IF(ISBLANK('B8 Schedule 8 CCA Bridge Year'!O39), "", 'B8 Schedule 8 CCA Bridge Year'!O39) -> 0 | I40: 0 | J40: 0 | K40: 0 | L40: ='B8 Schedule 8 CCA Bridge Year'!L39 -> 0 | M40: 0 | O40: 0
C41: =IF(ISBLANK('B8 Schedule 8 CCA Bridge Year'!C40), "", 'B8 Schedule 8 CCA Bridge Year'!C40) ->  | D41: =IF(ISBLANK('B8 Schedule 8 CCA Bridge Year'!D40), "", 'B8 Schedule 8 CCA Bridge Year'!D40) ->  | F41: =IF(ISBLANK('B8 Schedule 8 CCA Bridge Year'!O40), "", 'B8 Schedule 8 CCA Bridge Year'!O40) -> 0 | I41: 0 | J41: 0 | K41: 0 | L41: ='B8 Schedule 8 CCA Bridge Year'!L40 -> 0 | M41: 0 | O41: 0
C42: =IF(ISBLANK('B8 Schedule 8 CCA Bridge Year'!C41), "", 'B8 Schedule 8 CCA Bridge Year'!C41) ->  | D42: =IF(ISBLANK('B8 Schedule 8 CCA Bridge Year'!D41), "", 'B8 Schedule 8 CCA Bridge Year'!D41) ->  | F42: =IF(ISBLANK('B8 Schedule 8 CCA Bridge Year'!O41), "", 'B8 Schedule 8 CCA Bridge Year'!O41) -> 0 | I42: 0 | J42: 0 | K42: 0 | L42: ='B8 Schedule 8 CCA Bridge Year'!L41 -> 0 | M42: 0 | O42: 0
D43: TOTAL | F43: =SUM(F11:F42) -> 199261535.5 | G43: 26449767 | H43: -25000 | I43: 225686302.5 | J43: 13212383.5 | K43: 212473919 | M43: =SUM(M11:M42) -> 19000991.73 | N43: T1 | O43: =SUM(O11:O42) -> 206685310.8
C45: 1 The 2016 Federal Budget proposed changes to eligible capital property, effective January 1, 2017. These changes are considered to be substantively enacted under IFRS as it was tabled for first reading in the House of Commons. The PILS model reflect the removal of the Eligible Capital Property regime and the addition of the new Class 14.1 CCA pool.
C48: 1. New CCA class 14.1 effective January 1, 2017. The class includes property that was eligible capital property immediately before January 1, 2017. For tax years that end prior to 2027, transitional rules apply to class 14.1 that were acquired before January 1, 2017

Sheet T13 Sch 13 Reserve Test Year
C7: Schedule 13 Tax Reserves - Test Year
C9: Continuity of Reserves
I10: Test Year Adjustments
C11: Description | D11: Working Paper Reference | E11: Bridge Year | F11: Eliminate Amounts Not Relevant for Bridge Year | G11: Adjusted Utility Balance | I11: Additions | J11: Disposals | K11: Balance for Test Year | M11: Change During the Year | N11: Disallowed Expenses
C13: Capital Gains Reserves ss.40(1) | D13: B13 | E13: ='B13 Sch 13 Tax Reserves Bridge'!K13 -> 0 | G13: =SUM(E13:F13) -> 0 | K13: =G13+I13-J13 -> 0 | M13: =+K13-G13 -> 0
C14: Tax Reserves Not Deducted for accounting purposes
C15: Reserve for doubtful accounts ss. 20(1)(l) | D15: B13 | E15: ='B13 Sch 13 Tax Reserves Bridge'!K15 -> 0 | G15: =SUM(E15:F15) -> 0 | I15: 0 | J15: 0 | K15: =G15+I15-J15 -> 0 | M15: =+K15-G15 -> 0
C16: Reserve for goods and services not delivered ss. 20(1)(m) | D16: B13 | E16: ='B13 Sch 13 Tax Reserves Bridge'!K16 -> 0 | G16: 0 | K16: 0 | M16: 0
C17: Reserve for unpaid amounts ss. 20(1)(n) | D17: B13 | E17: ='B13 Sch 13 Tax Reserves Bridge'!K17 -> 0 | G17: 0 | K17: 0 | M17: 0
C18: Debt & Share Issue Expenses ss. 20(1)(e) | D18: B13 | E18: ='B13 Sch 13 Tax Reserves Bridge'!K18 -> 0 | G18: 0 | K18: 0 | M18: 0
C19: Other tax reserves | D19: B13 | E19: ='B13 Sch 13 Tax Reserves Bridge'!K19 -> 0 | G19: 0 | K19: 0 | M19: 0
E20: ='B13 Sch 13 Tax Reserves Bridge'!K20 -> 0 | G20: 0 | K20: 0 | M20: 0
E21: ='B13 Sch 13 Tax Reserves Bridge'!K21 -> 0 | G21: 0 | K21: 0 | M21: 0
C22: Total | E22: =SUM(E15:E21) -> 0 | F22: 0 | G22: 0 | H22: T1 | I22: 0 | J22: 0 | K22: 0 | L22: T1 | M22: 0 | N22: 0
E23: 0
C24: Financial Statement Reserves (not deductible for Tax Purposes)
C25: General Reserve for Inventory Obsolescence (non-specific) | D25: B13 | E25: ='B13 Sch 13 Tax Reserves Bridge'!K25 -> 0 | G25: =SUM(E25:F25) -> 0 | K25: =G25+I25-J25 -> 0 | M25: =+K25-G25 -> 0
C26: General reserve for bad debts | D26: B13 | E26: ='B13 Sch 13 Tax Reserves Bridge'!K26 -> 0 | G26: 0 | K26: 0 | M26: 0
C27: Accrued Employee Future Benefits: | D27: B13 | E27: ='B13 Sch 13 Tax Reserves Bridge'!K27 -> 0 | G27: 0 | K27: 0 | M27: 0
C28: - Medical and Life Insurance | D28: B13 | E28: ='B13 Sch 13 Tax Reserves Bridge'!K28 -> 0 | G28: 0 | K28: 0 | M28: 0
C29: -Short & Long-term Disability | D29: B13 | E29: ='B13 Sch 13 Tax Reserves Bridge'!K29 -> 0 | G29: 0 | K29: 0 | M29: 0
C30: -Accmulated Sick Leave | D30: B13 | E30: ='B13 Sch 13 Tax Reserves Bridge'!K30 -> 0 | G30: 0 | K30: 0 | M30: 0
C31: - Termination Cost | D31: B13 | E31: ='B13 Sch 13 Tax Reserves Bridge'!K31 -> 0 | G31: 0 | K31: 0 | M31: 0
C32: - Other Post-Employment Benefits | D32: B13 | E32: ='B13 Sch 13 Tax Reserves Bridge'!K32 -> 0 | G32: 0 | K32: 0 | M32: 0
C33: Provision for Environmental Costs | D33: B13 | E33: ='B13 Sch 13 Tax Reserves Bridge'!K33 -> 0 | G33: 0 | K33: 0 | M33: 0
C34: Restructuring Costs | D34: B13 | E34: ='B13 Sch 13 Tax Reserves Bridge'!K34 -> 0 | G34: 0 | K34: 0 | M34: 0
C35: Accrued Contingent Litigation Costs | D35: B13 | E35: ='B13 Sch 13 Tax Reserves Bridge'!K35 -> 0 | G35: 0 | K35: 0 | M35: 0
C36: Accrued Self-Insurance Costs | D36: B13 | E36: ='B13 Sch 13 Tax Reserves Bridge'!K36 -> 0 | G36: 0 | K36: 0 | M36: 0
C37: Other Contingent Liabilities | D37: B13 | E37: ='B13 Sch 13 Tax Reserves Bridge'!K37 -> 0 | G37: 0 | K37: 0 | M37: 0
C38: Bonuses Accrued and Not Paid Within 180 Days of Year-End ss. 78(4) | D38: B13 | E38: ='B13 Sch 13 Tax Reserves Bridge'!K38 -> 0 | G38: 0 | K38: 0 | M38: 0
C39: Unpaid Amounts to Related Person and Not Paid Within 3 Taxation Years ss. 78(1) | D39: B13 | E39: ='B13 Sch 13 Tax Reserves Bridge'!K39 -> 0 | G39: 0 | K39: 0 | M39: 0
C40: Other | D40: B13 | E40: ='B13 Sch 13 Tax Reserves Bridge'!K40 -> 0 | G40: 0 | K40: 0 | M40: 0
E41: ='B13 Sch 13 Tax Reserves Bridge'!K41 -> 0 | G41: 0 | K41: 0 | M41: 0
E42: ='B13 Sch 13 Tax Reserves Bridge'!K42 -> 0 | G42: 0 | K42: 0 | M42: 0
C43: Total | E43: =SUM(E25:E42) -> 0 | F43: 0 | G43: 0 | H43: T1 | I43: 0 | J43: 0 | K43: 0 | L43: T1 | M43: 0 | N43: 0
E44: 0
